Workbook

Sheet 3P1P
D2: Lote 1022 - (Novembro'25) - Cajamar SP02 - 1P / 3P
E6: =SUM(E8:E3575) -> 4,800 | M6: =SUM(M8:M3575) -> R$ 289,821.11
A7: Tipo | B7: Endereço WMS | C7: Código ML | D7: Código RZ | E7: Qtd | F7: Condição (Grade) | G7: Grupo | H7: Origem | I7: Descrição do Item | J7: Seller | K7: Vertical | L7: Valor Unit | M7: Valor Total | N7: Categoria | O7: Subcategoria | P7: Type Seller | Q7: CUSTO | R7: CUSTO TT
A8: REZAGO - FULL | B8: RO-0-020-000-00-03 | C8: JHXN23584 | D8: RZ-540899 | E8: 1 | F8: D | G8: 4494146 | H8: quarantine | I8: Apple iPhone 15 (256 Gb) - Preto - Distribuidor Autorizado | J8: Mercado Livre Eletronicos | K8: TECHNOLOGY | L8: R$ 5,029.14 | M8: =L8*E8 -> R$ 5,029.14 | N8: Celulares e Telefones | O8: Celulares e Smartphones | P8: 1P | Q8: =VLOOKUP(C8,'Página105'!A:D,4,0) -> 3781.97 | R8: =Q8*E8 -> 3781.97
A9: REZAGO | B9: RO-0-020-000-00-00 | C9: NFZX06594 | D9: RZ-568235 | E9: 1 | F9: A | G9: 4474440 | H9: it_support | I9: Barra Axial Crossfox Fox Gol Saveiro Polo Voyage Delphi | J9: DELPHI TECHNOLOGIES | K9: VEHICLE PARTS & ACCESSORIES | L9: R$ 4,149.17 | M9: R$ 4,149.17 | N9: Acessórios para Veículos | O9: Peças de Carros e Caminhonetes | P9: 3P
A10: REZAGO - RETURNS | B10: RO-0-020-000-00-03 | C10: RVWB17380 | D10: RZ-540899 | E10: 1 | F10: B | G10: 4494146 | H10: return | I10: Samsung Galaxy S23 256 Gb 5g Preto 8 Gb Ram | J10: Mercado Livre Eletronicos | K10: TECHNOLOGY | L10: R$ 4,054.61 | M10: R$ 4,054.61 | N10: Celulares e Telefones | O10: Celulares e Smartphones | P10: 1P | Q10: =VLOOKUP(C10,'Página105'!A:D,4,0) -> 2676.23 | R10: =Q10*E10 -> 2676.23
A11: REZAGO - RETURNS | B11: RO-0-020-000-00-03 | C11: RTIZ85806 | D11: RZ-540899 | E11: 1 | F11: D | G11: 4460374 | H11: return | I11: Apple iPhone 13 (128 Gb) - Estelar - Distribuidor Autorizado | J11: Mercado Livre Eletronicos | K11: TECHNOLOGY | L11: R$ 3,887.73 | M11: R$ 3,887.73 | N11: Celulares e Telefones | O11: Celulares e Smartphones | P11: 1P | Q11: =VLOOKUP(C11,'Página105'!A:D,4,0) -> 2795.65 | R11: 2795.65
A12: REZAGO | B12: RO-0-006-077-00-00 | C12: AJIF40038 | D12: RZ-540991 | E12: 1 | F12: A | G12: 4474446 | H12: it_support | I12: Console Playstation 5 Midia Fisica Slim Branco 1tb Returnal E Ratchet E Clank Controle Sem Fio Dualsense Branco | J12: NEGOCIUN-SP | K12: TECHNOLOGY | L12: R$ 3,655.18 | M12: R$ 3,655.18 | N12: Games | O12: Consoles | P12: 3P
A13: REZAGO | B13: RO-0-020-000-00-00 | C13: KOVM13876 | D13: RZ-568207 | E13: 2 | F13: A | G13: 4474444 | H13: it_support | I13: Notebook Samsung Galaxy Book2, Intel Core I3-1215u, 4gb, 256gb Ssd, Windows 11 Home, Tela 15.6 - Np550xed-kt3br | J13: V.I.K_ | K13: TECHNOLOGY | L13: R$ 3,646.48 | M13: R$ 7,292.96 | N13: Informática | O13: Portáteis e Acessórios | P13: 3P
A14: REZAGO - FULL | B14: RO-0-020-000-00-03 | C14: WFKJ93207 | D14: RZ-540899 | E14: 1 | F14: U | G14: 4460374 | H14: quarantine | I14: Tablet Galaxy Tab S9 Fe 128gb 6gb Ram 10.9 Lavanda Samsung Lavanda | J14: Mercado Livre Eletronicos | K14: TECHNOLOGY | L14: R$ 2,699.00 | M14: R$ 2,699.00 | N14: Informática | O14: Tablets e Acessórios | P14: 1P | Q14: =VLOOKUP(C14,'Página105'!A:D,4,0) -> 2098.16 | R14: =Q14*E14 -> 2098.16
A15: REZAGO | B15: RO-0-011-094-00-00 | C15: HCRJ40323 | D15: RZ-541109 | E15: 1 | F15: A | G15: 4472600 | H15: issues | I15: Gopro Hero 4k Câmera De Ação Compacta À Prova D'água Cor Preto | J15: INPOWER INFO | K15: TECHNOLOGY | L15: R$ 2,204.87 | M15: R$ 2,204.87 | N15: Câmeras e Acessórios | O15: Filmadoras | P15: 3P
A16: REZAGO | B16: RO-0-011-094-00-00 | C16: YTYO66504 | D16: RZ-568433 | E16: 1 | F16: A | G16: 4474440 | H16: it_support | I16: Kit Iluminação 3 Soft-box 50x70 Girafa C/ 12 Lampadas C/ N | J16: DISKDIGITAIS OFICIAL | K16: TECHNOLOGY | L16: R$ 2,029.77 | M16: R$ 2,029.77 | N16: Câmeras e Acessórios | O16: Acessórios para Câmeras | P16: 3P
A17: REZAGO | B17: RO-0-020-000-00-00 | C17: MKBD25354 | D17: RZ-568207 | E17: 1 | F17: A | G17: 4474444 | H17: it_support | I17: Samsung Galaxy A34 Dual Chip 5g 128gb Preto 6gb Ram | J17: V.I.K_ | K17: TECHNOLOGY | L17: R$ 1,905.20 | M17: R$ 1,905.20 | N17: Celulares e Telefones | O17: Celulares e Smartphones | P17: 3P
A18: REZAGO | B18: RO-0-006-077-00-00 | C18: QCKN66042 | D18: RZ-540991 | E18: 1 | F18: A | G18: 4474446 | H18: issues | I18: Bomba D'água Elétrica Bmw 320i 2012 2013 2014 2015 2016 2017 | J18: FECAUTO | K18: VEHICLE PARTS & ACCESSORIES | L18: R$ 1,886.54 | M18: R$ 1,886.54 | N18: Acessórios para Veículos | O18: Peças de Carros e Caminhonetes | P18: 3P
A19: REZAGO | B19: RO-0-006-077-00-00 | C19: KJAG21007 | D19: RZ-540991 | E19: 1 | F19: A | G19: 4472598 | H19: issues | I19: Samsung Galaxy M55 5g Dual Sim 256 Gb Azul Escuro 8 Gb Ram | J19: VIKINGS_DIGITAL | K19: TECHNOLOGY | L19: R$ 1,655.93 | M19: R$ 1,655.93 | N19: Celulares e Telefones | O19: Celulares e Smartphones | P19: 3P
A20: REZAGO | B20: RO-0-011-094-00-00 | C20: JEOC57714 | D20: RZ-568357 | E20: 1 | F20: A | G20: 4472600 | H20: issues | I20: Mikrotik The 4011 Series Routerboard Rb4011igs+rm 1400mhz Preto | J20: TNTINFO | K20: TECHNOLOGY | L20: R$ 1,586.37 | M20: R$ 1,586.37 | N20: Informática | O20: Conectividade e Redes | P20: 3P
A21: REZAGO | B21: RO-0-011-094-00-00 | C21: JAVP96684 | D21: RZ-568359 | E21: 1 | F21: A | G21: 4474442 | H21: it_support | I21: Smart Tv LG Ai Thinq 43lm631c0sb Led Webos Full Hd 43 | J21: V.I.K_ | K21: HOME ELECTRONICS | L21: R$ 1,407.12 | M21: R$ 1,407.12 | N21: Eletrônicos, Áudio e Vídeo | O21: Televisores | P21: 3P
A22: REZAGO | B22: RO-0-020-000-00-00 | C22: CDEI36226 | D22: RZ-568207 | E22: 1 | F22: A | G22: 4474444 | H22: issues | I22: Samsung Galaxy A15 Dual Sim 4g 256gb Azul Escuro 8gb Ram | J22: VIKINGS_DIGITAL | K22: TECHNOLOGY | L22: R$ 1,394.33 | M22: R$ 1,394.33 | N22: Celulares e Telefones | O22: Celulares e Smartphones | P22: 3P
A23: REZAGO | B23: RO-0-020-000-00-00 | C23: MNCF25562 | D23: RZ-568207 | E23: 1 | F23: A | G23: 4474444 | H23: it_support | I23: Samsung Galaxy A34 5g 256 Gb Preto 8 Gb Ram | J23: V.I.K_ | K23: TECHNOLOGY | L23: R$ 1,375.33 | M23: R$ 1,375.33 | N23: Celulares e Telefones | O23: Celulares e Smartphones | P23: 3P
A24: REZAGO | B24: RO-0-020-000-00-00 | C24: RTNR22749 | D24: RZ-568207 | E24: 1 | F24: A | G24: 4474444 | H24: it_support | I24: Gps Sonar Para Pesca Garmin Striker Plus 4 C/ Transducer Cor Preto | J24: PAMELAMARQUESDEALMEIDACARV | K24: VEHICLE PARTS & ACCESSORIES | L24: R$ 1,232.49 | M24: R$ 1,232.49 | N24: Acessórios para Veículos | O24: Navegadores GPS para Vehículos | P24: 3P
A25: REZAGO | B25: RO-0-011-094-00-00 | C25: ZNIF34433 | D25: RZ-568359 | E25: 1 | F25: A | G25: 4474444 | H25: it_support | I25: Gps Ciclocomputador Igpsport Igs630 Bluetooth Preto + Nf | J25: RAQUELBIKES | K25: SPORTS | L25: R$ 1,168.33 | M25: R$ 1,168.33 | N25: Esportes e Fitness | O25: Ciclismo | P25: 3P
A26: REZAGO | B26: RO-0-020-000-00-00 | C26: XEYM60512 | D26: RZ-568207 | E26: 1 | F26: A | G26: 4474434 | H26: it_support | I26: Samsung Galaxy A23 5g 128gb 4gb Ram Azul | J26: V.I.K_ | K26: TECHNOLOGY | L26: R$ 1,143.11 | M26: R$ 1,143.11 | N26: Celulares e Telefones | O26: Celulares e Smartphones | P26: 3P
A27: REZAGO | B27: RO-0-020-000-00-00 | C27: IWEG42294 | D27: RZ-568207 | E27: 1 | F27: A | G27: 4472600 | H27: issues | I27: Tablet Samsung Galaxy Tab A9 Tela 8.7 64gb 4gb Ram Wifi | J27: CARREFOUR.COM | K27: TECHNOLOGY | L27: R$ 1,103.57 | M27: R$ 1,103.57 | N27: Informática | O27: Tablets e Acessórios | P27: 3P
A28: REZAGO - FULL | B28: RO-0-006-077-00-00 | C28: WSKH34697 | D28: RZ-568343 | E28: 1 | F28: U | G28: 4494146 | H28: quarantine | I28: Smartphone Moto E20 32gb 2gb Ram Dual-sim Azul Motorola | J28: Mercado Livre Eletronicos | K28: TECHNOLOGY | L28: R$ 1,099.00 | M28: R$ 1,099.00 | N28: Celulares e Telefones | O28: Celulares e Smartphones | P28: 1P | Q28: =VLOOKUP(C28,'Página105'!A:D,4,0) -> 588.97 | R28: =Q28*E28 -> 588.97
A29: REZAGO - FULL | B29: RO-0-006-077-00-00 | C29: LDMM07891 | D29: RZ-568343 | E29: 1 | F29: C | G29: 4460374 | H29: quarantine | I29: Samsung Galaxy A15 4g Dual Sim 128 Gb Azul-claro 4 Gb Ram | J29: Mercado Livre Eletronicos | K29: TECHNOLOGY | L29: R$ 999.00 | M29: R$ 999.00 | N29: Celulares e Telefones | O29: Celulares e Smartphones | P29: 1P | Q29: =VLOOKUP(C29,'Página105'!A:D,4,0) -> 676.71 | R29: 676.71
A30: REZAGO | B30: RO-0-020-000-00-00 | C30: SVHV74535 | D30: RZ-568207 | E30: 1 | F30: A | G30: 4474436 | H30: it_support | I30: Pedal Acelerador Eletr Ford Cargo 2422 2428 1722e 4c459f836a | J30: MTRUCK_R | K30: VEHICLE PARTS & ACCESSORIES | L30: R$ 954.50 | M30: R$ 954.50 | N30: Acessórios para Veículos | O30: Peças de Carros e Caminhonetes | P30: 3P
A31: REZAGO | B31: RO-0-020-000-00-00 | C31: NOYT08248 | D31: RZ-568235 | E31: 1 | F31: A | G31: 4474446 | H31: it_support | I31: Samsung Galaxy A14 4g 64gb 4gb Verde Lima | J31: V.I.K_ | K31: TECHNOLOGY | L31: R$ 909.33 | M31: R$ 909.33 | N31: Celulares e Telefones | O31: Celulares e Smartphones | P31: 3P
A32: REZAGO - RETURNS | B32: RO-0-006-077-00-00 | C32: AHUM28811 | D32: RZ-568343 | E32: 1 | F32: D | G32: 4494146 | H32: return | I32: Micro-ondas Electrolux 31l Cor Inox Espelhado Com Painel Integrado E Função Tira Odor Mi41s 127v | J32: Mercado Livre Eletronicos | K32: HOME ELECTRONICS | L32: R$ 899.00 | M32: R$ 899.00 | N32: Eletrodomésticos | O32: Fornos e Fogões | P32: 1P | Q32: =VLOOKUP(C32,'Página105'!A:D,4,0) -> 629.92 | R32: =Q32*E32 -> 629.92
A33: REZAGO - RETURNS | B33: RO-0-006-077-00-00 | C33: AHUM28811 | D33: RZ-568343 | E33: 1 | F33: B | G33: 4460374 | H33: return | I33: Micro-ondas Electrolux 31l Cor Inox Espelhado Com Painel Integrado E Função Tira Odor Mi41s 127v | J33: Mercado Livre Eletronicos | K33: HOME ELECTRONICS | L33: R$ 899.00 | M33: R$ 899.00 | N33: Eletrodomésticos | O33: Fornos e Fogões | P33: 1P | Q33: =VLOOKUP(C33,'Página105'!A:D,4,0) -> 629.92 | R33: 629.92
A34: REZAGO | B34: RO-0-020-000-00-00 | C34: FKXI48989 | D34: RZ-568235 | E34: 1 | F34: A | G34: 4472596 | H34: withdrawal_stock_disposal_low_rotation | I34: Streaming Box Sm6225 P/ Carros Carplay 4g Wifi 128gb 8gb Ram | J34: LEVELUP_ | K34: VEHICLE PARTS & ACCESSORIES | L34: R$ 882.00 | M34: R$ 882.00 | N34: Acessórios para Veículos | O34: Som Automotivo | P34: 3P
A35: REZAGO | B35: RO-0-011-094-00-00 | C35: FKXI48989 | D35: RZ-541109 | E35: 1 | F35: A | G35: 4472596 | H35: withdrawal_stock_disposal_low_rotation | I35: Streaming Box Sm6225 P/ Carros Carplay 4g Wifi 128gb 8gb Ram | J35: LEVELUP_ | K35: VEHICLE PARTS & ACCESSORIES | L35: R$ 882.00 | M35: R$ 882.00 | N35: Acessórios para Veículos | O35: Som Automotivo | P35: 3P
A36: REZAGO | B36: RO-0-011-094-00-00 | C36: IWRN67762 | D36: RZ-568359 | E36: 1 | F36: A | G36: 4474444 | H36: it_support | I36: Motosserra Á Gasolina 54cc 3hp 2t Oregon Cs58s20ac Tekna Cor Laranja | J36: REIDASFERRAMENTASMAQLTDA | K36: CONSTRUCTION & INDUSTRY | L36: R$ 855.41 | M36: R$ 855.41 | N36: Ferramentas | O36: Ferramentas para Jardim | P36: 3P
A37: REZAGO | B37: RO-0-011-094-00-00 | C37: QKRV62381 | D37: RZ-568359 | E37: 1 | F37: A | G37: 4474444 | H37: it_support | I37: Lixadeira Telescópica Parede Teto 750w Mlp750 Menegotti 127v Cor Amarelo Frequência 60 Hz | J37: RMFERRAMENTASLTDA | K37: CONSTRUCTION & INDUSTRY | L37: R$ 796.79 | M37: R$ 796.79 | N37: Ferramentas | O37: Ferramentas Elétricas | P37: 3P
A38: REZAGO | B38: RO-0-020-000-00-00 | C38: QNNU19471 | D38: RZ-568207 | E38: 1 | F38: A | G38: 4474436 | H38: it_support | I38: Moto E22 Dual Sim 128 Gb Preto 4 Gb Ram | J38: WEBFONES_OFICIAL | K38: TECHNOLOGY | L38: R$ 791.12 | M38: R$ 791.12 | N38: Celulares e Telefones | O38: Celulares e Smartphones | P38: 3P
A39: REZAGO | B39: RO-0-020-000-00-00 | C39: BSPZ79445 | D39: RZ-568207 | E39: 1 | F39: A | G39: 4472596 | H39: issues | I39: Smartphone Samsung Galaxy A05s Dual 4g 128gb Preto 6gb Ram | J39: VIKINGS_DIGITAL | K39: TECHNOLOGY | L39: R$ 696.73 | M39: R$ 696.73 | N39: Celulares e Telefones | O39: Celulares e Smartphones | P39: 3P
A40: REZAGO | B40: RO-0-020-000-00-00 | C40: TRSX68143 | D40: RZ-568235 | E40: 1 | F40: A | G40: 4472596 | H40: issues | I40: Régua Potenciométrica Ktc - Ktc-375mm | J40: PNG TECH | K40: HOME ELECTRONICS | L40: R$ 678.60 | M40: R$ 678.60 | N40: Eletrônicos, Áudio e Vídeo | O40: Componentes Eletrônicos | P40: 3P
A41: REZAGO | B41: RO-0-020-000-00-00 | C41: KZIM61335 | D41: RZ-568235 | E41: 1 | F41: A | G41: 4474442 | H41: it_support | I41: Sensor Ângulo Direção Toyota Hilux 2016 À 2021 892450k020 | J41: DAEVASDOMAIN | K41: VEHICLE PARTS & ACCESSORIES | L41: R$ 654.87 | M41: R$ 654.87 | N41: Acessórios para Veículos | O41: Peças de Carros e Caminhonetes | P41: 3P
A42: REZAGO | B42: RO-0-011-094-00-00 | C42: CTBM50978 | D42: RZ-568433 | E42: 1 | F42: A | G42: 4474434 | H42: it_support | I42: Access Point Ubiquiti Ap Unifi Uap-ac-lite-br Mimo 2.4/5 Ghz | J42: TNTINFO | K42: TECHNOLOGY | L42: R$ 635.97 | M42: R$ 635.97 | N42: Informática | O42: Conectividade e Redes | P42: 3P
A43: REZAGO | B43: RO-0-011-094-00-00 | C43: PEXY83478 | D43: RZ-568359 | E43: 1 | F43: A | G43: 4474440 | H43: it_support | I43: Lixadeira Telescopia De Parede Girafa Mlp 750 Led Menegotti Cor Amarelo Frequência 60 Hz | J43: RAMARTINSBORGESNEGOCIOSLTD | K43: CONSTRUCTION & INDUSTRY | L43: R$ 632.98 | M43: R$ 632.98 | N43: Ferramentas | O43: Ferramentas Elétricas | P43: 3P
A44: REZAGO | B44: RO-0-020-000-00-00 | C44: YFJJ35447 | D44: RZ-568235 | E44: 1 | F44: A | G44: 4474440 | H44: it_support | I44: Inversora De Solda 120a 220v Oz Mi150 + Mascara E Acessórios Amarelo | J44: ISMAFER_06 | K44: CONSTRUCTION & INDUSTRY | L44: R$ 615.97 | M44: R$ 615.97 | N44: Ferramentas | O44: Ferramentas Elétricas | P44: 3P
A45: REZAGO | B45: RO-0-006-077-00-00 | C45: ECUG13980 | D45: RZ-540991 | E45: 1 | F45: A | G45: 4474434 | H45: it_support | I45: Robô Aspirador Mondial Fast Clean Rb-01 Vermelho E Preto | J45: LOI BRASIL | K45: HOME ELECTRONICS | L45: R$ 593.31 | M45: R$ 593.31 | N45: Eletrodomésticos | O45: Pequenos Eletrodomésticos | P45: 3P
A46: REZAGO | B46: RO-0-020-000-00-00 | C46: TJJX44699 | D46: RZ-568207 | E46: 1 | F46: A | G46: 4474428 | H46: it_support | I46: Asus Zenfone Max Plus M2 Zb634kl Dual Sim 32 Gb Preto 3 Gb Ram | J46: VILA_VIRTUAL | K46: TECHNOLOGY | L46: R$ 587.16 | M46: R$ 587.16 | N46: Celulares e Telefones | O46: Celulares e Smartphones | P46: 3P
A47: REZAGO | B47: RO-0-011-094-00-00 | C47: NVMG62541 | D47: RZ-568357 | E47: 1 | F47: A | G47: 4474442 | H47: it_support | I47: Robô Aspirador Wap Robot W100 Bivolt Preto | J47: SHOPCLIK | K47: HOME ELECTRONICS | L47: R$ 583.79 | M47: R$ 583.79 | N47: Eletrodomésticos | O47: Pequenos Eletrodomésticos | P47: 3P
A48: REZAGO | B48: RO-0-020-000-00-00 | C48: OURH77508 | D48: RZ-568207 | E48: 1 | F48: A | G48: 4474434 | H48: it_support | I48: Bomba Elétrica Vácuo Freio Cruze Original Hella 1.8 2016 | J48: DUO AUTOPEÇAS | K48: VEHICLE PARTS & ACCESSORIES | L48: R$ 577.84 | M48: R$ 577.84 | N48: Acessórios para Veículos | O48: Peças de Carros e Caminhonetes | P48: 3P
A49: REZAGO | B49: RO-0-011-094-00-00 | C49: GTBF98512 | D49: RZ-541109 | E49: 1 | F49: A | G49: 4472596 | H49: issues | I49: Guincho Elétrico 3000lb 1361 Kg 12v Para Quadriculo Jipe Tr | J49: AGROTAMA2 | K49: VEHICLE PARTS & ACCESSORIES | L49: R$ 545.14 | M49: R$ 545.14 | N49: Acessórios para Veículos | O49: Ferramentas para Veículos | P49: 3P
A50: REZAGO - RETURNS | B50: RO-0-006-077-00-00 | C50: SQMK30657 | D50: RZ-568343 | E50: 1 | F50: B | G50: 4460374 | H50: return | I50: Micro-ondas Pmo28b Philco Branco 1100w | J50: Mercado Livre Eletronicos | K50: HOME ELECTRONICS | L50: R$ 534.00 | M50: R$ 534.00 | N50: Eletrodomésticos | O50: Fornos e Fogões | P50: 1P | Q50: =VLOOKUP(C50,'Página105'!A:D,4,0) -> 367.96 | R50: =Q50*E50 -> 367.96
A51: REZAGO | B51: RO-0-020-000-00-03 | C51: CSQG98963 | D51: RZ-540897 | E51: 1 | F51: A | G51: 4474434 | H51: it_support | I51: Refil Bomba Combustível Gasolina Volvo S60 2.0 16v T5 | J51: 360GRAUS VARIEDADES | K51: VEHICLE PARTS & ACCESSORIES | L51: R$ 531.44 | M51: R$ 531.44 | N51: Acessórios para Veículos | O51: Peças de Carros e Caminhonetes | P51: 3P
A52: REZAGO | B52: RO-0-006-077-00-00 | C52: GRZE80606 | D52: RZ-540991 | E52: 3 | F52: A | G52: 4472598 | H52: withdrawal_stock_disposal_low_rotation | I52: Colete Salva Vidas Black Editition V5 Neoprene Jet Ski Hydro | J52: QUEROQUEROSHOP | K52: VEHICLE PARTS & ACCESSORIES | L52: R$ 499.31 | M52: R$ 1,497.93 | N52: Esportes e Fitness | O52: Canoas, Caiaques e Infláveis | P52: 3P
A53: REZAGO | B53: RO-0-011-094-00-00 | C53: AKCO92392 | D53: RZ-568357 | E53: 1 | F53: A | G53: 4472598 | H53: issues | I53: Câmera De Ré Ford Fusion 2013 2014 2015 2016 2017 2018 2019 | J53: FFLORENCIO_SP2 | K53: VEHICLE PARTS & ACCESSORIES | L53: R$ 487.11 | M53: R$ 487.11 | N53: Acessórios para Veículos | O53: Aces. de Carros e Caminhonetes | P53: 3P
A54: REZAGO | B54: RO-0-006-077-00-00 | C54: VCFG88723 | D54: RZ-540991 | E54: 1 | F54: A | G54: 4474428 | H54: issues | I54: Comedouro Automático Inteligente Pet Wi-fi Para Cães E Gatos Branco | J54: FXTBR | K54: CPG | L54: R$ 486.75 | M54: R$ 486.75 | N54: Pet Shop | O54: Cães | P54: 3P
A55: REZAGO | B55: RO-0-011-094-00-00 | C55: KKKP98241 | D55: RZ-568359 | E55: 1 | F55: A | G55: 4474444 | H55: it_support | I55: Parafuso Ponta Agulha Forro Calhas Drywall 4,2x13 - 10000 Pç | J55: RC VAREJISTA | K55: CONSTRUCTION & INDUSTRY | L55: R$ 483.99 | M55: R$ 483.99 | N55: Construção | O55: Materiais de Obra | P55: 3P
A56: REZAGO | B56: RO-0-006-077-00-00 | C56: SOWV90189 | D56: RZ-540991 | E56: 1 | F56: A | G56: 4474436 | H56: it_support | I56: Soprador De Folhas A Gasolina 2 Tempos 26cc Sv260s Vulcan | J56: FEMAKBRASIL | K56: CONSTRUCTION & INDUSTRY | L56: R$ 481.36 | M56: R$ 481.36 | N56: Ferramentas | O56: Ferramentas para Jardim | P56: 3P
A57: REZAGO | B57: RO-0-020-000-00-00 | C57: LCFZ71675 | D57: RZ-568207 | E57: 1 | F57: A | G57: 4472596 | H57: issues | I57: Positivo Twist 4 Pro S518 Dual Sim 64 Gb Preto 1 Gb Ram | J57: 123 COMPROU | K57: TECHNOLOGY | L57: R$ 457.22 | M57: R$ 457.22 | N57: Celulares e Telefones | O57: Celulares e Smartphones | P57: 3P
A58: REZAGO - RETURNS | B58: RO-0-006-077-00-00 | C58: MWIM40174 | D58: RZ-568343 | E58: 1 | F58: D | G58: 4460374 | H58: return | I58: Monitor 24b1xhm Adaptive Sync 23,8 Widescreen Va 75hz Preto Aoc | J58: Mercado Livre Eletronicos | K58: TECHNOLOGY | L58: R$ 455.22 | M58: R$ 455.22 | N58: Informática | O58: Monitores e Acessórios | P58: 1P | Q58: =VLOOKUP(C58,'Página105'!A:D,4,0) -> 392.84 | R58: =Q58*E58 -> 392.84
A59: REZAGO - RETURNS | B59: RO-0-006-077-00-00 | C59: QEIE65867 | D59: RZ-568343 | E59: 1 | F59: B | G59: 4460374 | H59: return | I59: Lavadora De Alta Pressão Wap Atacama Smart Com Potência De 1400w 1500psi | J59: Mercado Livre Casa | K59: CONSTRUCTION & INDUSTRY | L59: R$ 450.66 | M59: R$ 450.66 | N59: Ferramentas | O59: Ferramentas Elétricas | P59: 1P | Q59: =VLOOKUP(C59,'Página105'!A:D,4,0) -> 295.34 | R59: 295.34
A60: REZAGO | B60: RO-0-011-094-00-00 | C60: XZGG04995 | D60: RZ-568433 | E60: 2 | F60: A | G60: 4474442 | H60: it_support | I60: Trocador De Calor Fiat Toro Argo Cronos Renegade Compass | J60: RADIARONLINE COMPONENTES | K60: VEHICLE PARTS & ACCESSORIES | L60: R$ 443.12 | M60: R$ 886.24 | N60: Acessórios para Veículos | O60: Peças de Carros e Caminhonetes | P60: 3P
A61: REZAGO | B61: RO-0-011-094-00-00 | C61: TPMM85156 | D61: RZ-541109 | E61: 1 | F61: A | G61: 4474440 | H61: it_support | I61: Kit Braço Articulado+ Pop Filter P/ Blue Yeti E Snowball | J61: RUADASOFERTAS | K61: ENTERTAINMENT | L61: R$ 426.31 | M61: R$ 426.31 | N61: Eletrônicos, Áudio e Vídeo | O61: Áudio | P61: 3P
A62: REZAGO - RETURNS | B62: RO-0-020-000-00-03 | C62: FOOD27393 | D62: RZ-540899 | E62: 1 | F62: B | G62: 4460374 | H62: return | I62: Echo Dot 5ª Geração Alto-falante De 1,73 Preto Amazon B09b8vgcr8 | J62: Mercado Livre Eletronicos | K62: HOME ELECTRONICS | L62: R$ 423.00 | M62: R$ 423.00 | N62: Eletrônicos, Áudio e Vídeo | O62: Áudio | P62: 1P | Q62: =VLOOKUP(C62,'Página105'!A:D,4,0) -> 263.43 | R62: =Q62*E62 -> 263.43
A63: REZAGO | B63: RO-0-020-000-00-00 | C63: ZEQN88878 | D63: RZ-568207 | E63: 1 | F63: A | G63: 4472596 | H63: withdrawal_stock_disposal_low_rotation | I63: Desumidificador Ambiente Eléctrico De Ar 2800ml Com Controle Branco | J63: FXTBR | K63: HOME ELECTRONICS | L63: R$ 416.17 | M63: R$ 416.17 | N63: Eletrodomésticos | O63: Ar e Ventilação | P63: 3P
A64: REZAGO | B64: RO-0-006-077-00-00 | C64: ZEQN88878 | D64: RZ-540991 | E64: 1 | F64: A | G64: 4472598 | H64: issues | I64: Desumidificador Ambiente Eléctrico De Ar 2800ml Com Controle Branco | J64: FXTBR | K64: HOME ELECTRONICS | L64: R$ 416.17 | M64: R$ 416.17 | N64: Eletrodomésticos | O64: Ar e Ventilação | P64: 3P
A65: REZAGO | B65: RO-0-020-000-00-00 | C65: GKFY76351 | D65: RZ-568207 | E65: 1 | F65: A | G65: 4472598 | H65: withdrawal_stock_disposal_low_rotation | I65: Jogo Lençol King 600 Fios 100% Algodão Egípcio Casa Di Valle | J65: SWEET CASA | K65: FURNISHING & HOUSEWARE | L65: R$ 413.53 | M65: R$ 413.53 | N65: Casa, Móveis e Decoração | O65: Têxteis de Casa e Decoração | P65: 3P
A66: REZAGO | B66: RO-0-020-000-00-03 | C66: AOST59748 | D66: RZ-540897 | E66: 1 | F66: A | G66: 4472596 | H66: withdrawal_stock_disposal_low_rotation | I66: Moedor De Carne Elétrico Multifunção Cortador Vegetais 9 Em1 110v | J66: FXTBR | K66: FURNISHING & HOUSEWARE | L66: R$ 406.48 | M66: R$ 406.48 | N66: Casa, Móveis e Decoração | O66: Cozinha | P66: 3P
A67: REZAGO | B67: RO-0-006-077-00-00 | C67: BSOP52134 | D67: RZ-540991 | E67: 1 | F67: A | G67: 4472598 | H67: withdrawal_stock_disposal_low_rotation | I67: Kit Mochila Rodinha E Lancheira Barbie By Luxcel Ref 47692 | J67: AUDRINPRESENTES | K67: FASHION | L67: R$ 401.15 | M67: R$ 401.15 | N67: Calçados, Roupas e Bolsas | O67: Malas e Bolsas | P67: 3P
A68: REZAGO - RETURNS | B68: RO-0-020-000-00-03 | C68: KVWJ14523 | D68: RZ-540899 | E68: 1 | F68: C | G68: 4460374 | H68: return | I68: Tênis Streetcheck Low Basketball Feminino adidas | J68: Mercado Livre Moda | K68: FASHION | L68: R$ 399.90 | M68: R$ 399.90 | N68: Calçados, Roupas e Bolsas | O68: Calçados | P68: 1P | Q68: =VLOOKUP(C68,'Página105'!A:D,4,0) -> 115.97 | R68: =Q68*E68 -> 115.97
A69: REZAGO | B69: RO-0-011-094-00-00 | C69: YTDX49689 | D69: RZ-568433 | E69: 1 | F69: A | G69: 4474434 | H69: it_support | I69: Modulo Sfp 10gb 20km Wdm 1270/1330nm Lc Gbic 10g Bidi Par | J69: AZTECHHARDWARE | K69: TECHNOLOGY | L69: R$ 396.51 | M69: R$ 396.51 | N69: Informática | O69: Conectividade e Redes | P69: 3P
A70: REZAGO | B70: RO-0-020-000-00-03 | C70: GVYU49139 | D70: RZ-540897 | E70: 1 | F70: A | G70: 4474446 | H70: it_support | I70: Par 2 Coxim Rolamento Batente Coifa Amortecedor Dianteiro X1 | J70: PEDI_PECAS | K70: VEHICLE PARTS & ACCESSORIES | L70: R$ 385.41 | M70: R$ 385.41 | N70: Acessórios para Veículos | O70: Peças de Carros e Caminhonetes | P70: 3P
A71: REZAGO | B71: RO-0-020-000-00-03 | C71: GOYN87737 | D71: RZ-540897 | E71: 1 | F71: A | G71: 4472600 | H71: issues | I71: Kit 05un Adaptadores Tomada Cubo 10a/20a Universal | J71: SGSG20220817150046 | K71: CONSTRUCTION & INDUSTRY | L71: R$ 376.90 | M71: R$ 376.90 | N71: Construção | O71: Energia | P71: 3P
A72: REZAGO | B72: RO-0-020-000-00-00 | C72: TTTQ69870 | D72: RZ-568207 | E72: 1 | F72: A | G72: 4472598 | H72: withdrawal_stock_disposal_low_rotation | I72: Caixa De Som Portátil Bluetooth Hifi Tws 1+1 Com Rgb Fm Ipx5 | J72: MEGACOMERCIODEVARIEDADES | K72: HOME ELECTRONICS | L72: R$ 361.37 | M72: R$ 361.37 | N72: Eletrônicos, Áudio e Vídeo | O72: Áudio | P72: 3P
A73: REZAGO | B73: RO-0-011-094-00-00 | C73: TZWE30129 | D73: RZ-568359 | E73: 1 | F73: A | G73: 4474428 | H73: withdrawal_stock_disposal_by_seller | I73: Nível A Laser Profissional 3d 12 Linhas Verde Com Tripe 360 | J73: VHS COMÉRCIO | K73: CONSTRUCTION & INDUSTRY | L73: R$ 349.05 | M73: R$ 349.05 | N73: Ferramentas | O73: Medições e Instrumentação | P73: 3P
A74: REZAGO - FULL | B74: RO-0-020-000-00-03 | C74: NDJG79432 | D74: RZ-540899 | E74: 1 | F74: E | G74: 4494146 | H74: quarantine | I74: Escova De Dente Elétrica Oral B Pro Series 3 Recarregável | J74: Mercado Livre Brasil | K74: HEALTH | L74: R$ 346.00 | M74: R$ 346.00 | N74: Beleza e Cuidado Pessoal | O74: Higiene Pessoal | P74: 1P | Q74: =VLOOKUP(C74,'Página105'!A:D,4,0) -> 290.52 | R74: =Q74*E74 -> 290.52
A75: REZAGO | B75: RO-0-020-000-00-00 | C75: NAAE43619 | D75: RZ-568207 | E75: 1 | F75: A | G75: 4472598 | H75: withdrawal_stock_disposal_low_rotation | I75: Arame Solido Cobreado Mig 1mm Carretel 15kg Tmx Vonder | J75: LALFERIMPORT | K75: CONSTRUCTION & INDUSTRY | L75: R$ 345.24 | M75: R$ 345.24 | N75: Ferramentas | O75: Acessórios para Ferramentas | P75: 3P
A76: REZAGO | B76: RO-0-020-000-00-03 | C76: XQEI70580 | D76: RZ-540897 | E76: 1 | F76: A | G76: 4472600 | H76: issues | I76: Cabo De Aço Galvanizado 1/4 6x19 6,4mm Alma Aço 60 Metros | J76: DISTRIBUIDORA LOBO | K76: CONSTRUCTION & INDUSTRY | L76: R$ 340.28 | M76: R$ 340.28 | N76: Construção | O76: Materiais de Obra | P76: 3P
A77: REZAGO | B77: RO-0-011-094-00-00 | C77: ZEBK02186 | D77: RZ-568359 | E77: 1 | F77: A | G77: 4474434 | H77: it_support | I77: Piscina Inflável Com Borda Redonda 4760l Verão Praia Cor Azul Ref.elp01003 | J77: KCBRASIL | K77: T & B | L77: R$ 336.21 | M77: R$ 336.21 | N77: Casa, Móveis e Decoração | O77: Jardim e Ar Livre | P77: 3P
A78: REZAGO | B78: RO-0-020-000-00-00 | C78: MLEC18476 | D78: RZ-568235 | E78: 1 | F78: A | G78: 4474446 | H78: it_support | I78: Parafuso Auto Brocante Telha 5,5 (12) X 3/4 (19mm) - 2000 Pç | J78: RC VAREJISTA | K78: CONSTRUCTION & INDUSTRY | L78: R$ 334.30 | M78: R$ 334.30 | N78: Construção | O78: Materiais de Obra | P78: 3P
A79: REZAGO | B79: RO-0-011-094-00-00 | C79: MLEC18476 | D79: RZ-541109 | E79: 1 | F79: A | G79: 4474446 | H79: it_support | I79: Parafuso Auto Brocante Telha 5,5 (12) X 3/4 (19mm) - 2000 Pç | J79: RC VAREJISTA | K79: CONSTRUCTION & INDUSTRY | L79: R$ 334.30 | M79: R$ 334.30 | N79: Construção | O79: Materiais de Obra | P79: 3P
A80: REZAGO | B80: RO-0-006-077-00-00 | C80: OUAI09049 | D80: RZ-540991 | E80: 1 | F80: A | G80: 4474436 | H80: it_support | I80: Escova Rotativa Black Rose Line Mondial Er-10 Mondial | J80: DATINA PREMIUM | K80: BEAUTY | L80: R$ 332.00 | M80: R$ 332.00 | N80: Beleza e Cuidado Pessoal | O80: Barbearia | P80: 3P
A81: REZAGO | B81: RO-0-020-000-00-00 | C81: BAWA47982 | D81: RZ-568207 | E81: 1 | F81: A | G81: 4474434 | H81: it_support | I81: Tênis Öus Skate Arquitetônico Preto Ocre Essencial Original | J81: UNIÃO SHOP | K81: FASHION | L81: R$ 323.99 | M81: R$ 323.99 | N81: Calçados, Roupas e Bolsas | O81: Calçados | P81: 3P
A82: REZAGO | B82: RO-0-011-094-00-00 | C82: WYTN43585 | D82: RZ-541109 | E82: 1 | F82: A | G82: 4472598 | H82: issues | I82: Kit Terminal Direção Pivô Barra Axial Bieleta Astra 99/ 2011 | J82: TH2BRASIL | K82: VEHICLE PARTS & ACCESSORIES | L82: R$ 323.70 | M82: R$ 323.70 | N82: Acessórios para Veículos | O82: Peças de Carros e Caminhonetes | P82: 3P
A83: REZAGO | B83: RO-0-011-094-00-00 | C83: QDIG92196 | D83: RZ-568357 | E83: 1 | F83: A | G83: 4474436 | H83: it_support | I83: Bretelle Ciclismo Bike Masculino Carbon 2.0 Mauro Ribeiro | J83: MONTE CICLO | K83: SPORTS | L83: R$ 320.85 | M83: R$ 320.85 | N83: Esportes e Fitness | O83: Ciclismo | P83: 3P
A84: REZAGO | B84: RO-0-011-094-00-00 | C84: ZTHM46237 | D84: RZ-568359 | E84: 1 | F84: A | G84: 4474446 | H84: it_support | I84: Encosto De Cabeça Slim Tela 8 Android Bluetooth Dvd Carro Preto | J84: ELITEAUTOMOTIVA | K84: VEHICLE PARTS & ACCESSORIES | L84: R$ 320.01 | M84: R$ 320.01 | N84: Acessórios para Veículos | O84: Som Automotivo | P84: 3P
A85: REZAGO | B85: RO-0-020-000-00-00 | C85: YEJI93615 | D85: RZ-568207 | E85: 1 | F85: A | G85: 4474440 | H85: it_support | I85: Relógio Casio G-shock Masculino Digital Dw-5600uhr-1dr | J85: REALTIMES | K85: FASHION | L85: R$ 317.18 | M85: R$ 317.18 | N85: Joias e Relógios | O85: Relógios | P85: 3P
A86: REZAGO | B86: RO-0-020-000-00-03 | C86: AEES88660 | D86: RZ-540897 | E86: 1 | F86: A | G86: 4474446 | H86: it_support | I86: Fonte Carregador Automotivo Jfa 40a Lite Storm Slim Bivolt Cor Preto | J86: RADICALSOMOFICIAL | K86: VEHICLE PARTS & ACCESSORIES | L86: R$ 315.89 | M86: R$ 315.89 | N86: Acessórios para Veículos | O86: Som Automotivo | P86: 3P
A87: REZAGO | B87: RO-0-020-000-00-00 | C87: DWNY48645 | D87: RZ-568235 | E87: 1 | F87: A | G87: 4474444 | H87: it_support | I87: Máquina Inversora Solda Elétrica Pró-euro 160a - 220v | J87: PRO-EURO | K87: CONSTRUCTION & INDUSTRY | L87: R$ 314.20 | M87: R$ 314.20 | N87: Ferramentas | O87: Ferramentas Elétricas | P87: 3P
A88: REZAGO | B88: RO-0-020-000-00-00 | C88: CYGD94258 | D88: RZ-568235 | E88: 1 | F88: A | G88: 4474442 | H88: it_support | I88: Jogo Balancim S10 2,4 Flex 2013 Até 2017 Original | J88: CRISTINASANTOSTHAISA | K88: VEHICLE PARTS & ACCESSORIES | L88: R$ 314.20 | M88: R$ 314.20 | N88: Acessórios para Veículos | O88: Peças de Carros e Caminhonetes | P88: 3P
A89: REZAGO | B89: RO-0-006-077-00-00 | C89: CYGD94258 | D89: RZ-540991 | E89: 1 | F89: A | G89: 4474442 | H89: it_support | I89: Jogo Balancim S10 2,4 Flex 2013 Até 2017 Original | J89: CRISTINASANTOSTHAISA | K89: VEHICLE PARTS & ACCESSORIES | L89: R$ 314.20 | M89: R$ 314.20 | N89: Acessórios para Veículos | O89: Peças de Carros e Caminhonetes | P89: 3P
A90: REZAGO | B90: RO-0-011-094-00-00 | C90: ZBAZ07226 | D90: RZ-541109 | E90: 1 | F90: A | G90: 4472600 | H90: issues | I90: Mola Para Cama Elastica De 18 Cm - Pacote Com 100 Unidades | J90: MAMIBRINQUEDOS | K90: T & B | L90: R$ 314.11 | M90: R$ 314.11 | N90: Brinquedos e Hobbies | O90: Ar Livre e Playground | P90: 3P
A91: REZAGO | B91: RO-0-011-094-00-00 | C91: NUWP00421 | D91: RZ-568357 | E91: 1 | F91: A | G91: 4474442 | H91: it_support | I91: Coldre Canhoto Invictus Glock 19 G23 G25 Compact Velad Kydex | J91: ERMIDA TACTICAL | K91: SPORTS | L91: R$ 309.90 | M91: R$ 309.90 | N91: Esportes e Fitness | O91: Tiro Esportivo | P91: 3P
A92: REZAGO | B92: RO-0-011-094-00-00 | C92: YWSG33073 | D92: RZ-568357 | E92: 1 | F92: A | G92: 4472596 | H92: issues | I92: Kit Chave De Impacto 21v Parafusadeira + Jogo Soquete 46pç | J92: RAMISTOREE | K92: CONSTRUCTION & INDUSTRY | L92: R$ 307.99 | M92: R$ 307.99 | N92: Ferramentas | O92: Ferramentas Elétricas | P92: 3P
A93: REZAGO | B93: RO-0-020-000-00-00 | C93: VVTG60336 | D93: RZ-568235 | E93: 1 | F93: A | G93: 4474444 | H93: it_support | I93: Memoria Ram Asgard Loki W2 Ddr4 16gb 2x8gb 3200mhz Rgb Preto | J93: EXTRABYTEOFICIAL | K93: TECHNOLOGY | L93: R$ 300.14 | M93: R$ 300.14 | N93: Informática | O93: Componentes para PC | P93: 3P
A94: REZAGO | B94: RO-0-011-094-00-00 | C94: DMFW65931 | D94: RZ-568433 | E94: 1 | F94: A | G94: 4474442 | H94: it_support | I94: Chuteira De Futsal Umbro Tocco Iii Premier Couro Natural | J94: SLOTHSPORTING | K94: FASHION | L94: R$ 291.99 | M94: R$ 291.99 | N94: Esportes e Fitness | O94: Futebol | P94: 3P
A95: REZAGO | B95: RO-0-020-000-00-00 | C95: XQVO07901 | D95: RZ-568207 | E95: 1 | F95: A | G95: 4474440 | H95: it_support | I95: Tenis Converse All Star Plataforma Cano Alto Preto Original | J95: ZAZTRAZSPORTES | K95: FASHION | L95: R$ 291.52 | M95: R$ 291.52 | N95: Calçados, Roupas e Bolsas | O95: Calçados | P95: 3P
A96: REZAGO | B96: RO-0-006-077-00-00 | C96: ZCMD96697 | D96: RZ-540991 | E96: 1 | F96: A | G96: 4472600 | H96: issues | I96: Amplificador Para Guitarra Violão Mackintec Maxx 15 Jornal Envelhecido | J96: SANTA EFIGENIA_ECOMMERCE | K96: ENTERTAINMENT | L96: R$ 291.42 | M96: R$ 291.42 | N96: Instrumentos Musicais | O96: Microfones e Amplificadores | P96: 3P
A97: REZAGO | B97: RO-0-011-094-00-00 | C97: PKYD79263 | D97: RZ-541109 | E97: 1 | F97: A | G97: 4474434 | H97: issues | I97: Modulo Taramps Ts800x4 2 Ohms 800w Potencia Rms Amplificador Som Automotivo Entrada Rca E Fio Crossover Lpf Full Hpf Subwoofer Kit Duas Vias Drivers T800 4 Canais Carro Camionete Conexao Bridge Branco | J97: RADICALSOMOFICIAL | K97: VEHICLE PARTS & ACCESSORIES | L97: R$ 281.35 | M97: R$ 281.35 | N97: Acessórios para Veículos | O97: Som Automotivo | P97: 3P
A98: REZAGO | B98: RO-0-020-000-00-03 | C98: KKQW51525 | D98: RZ-540897 | E98: 1 | F98: A | G98: 4472600 | H98: issues | I98: Fones De Ouvido Com Cancelamento De Ruído Preto Jbl Tune Buds Ip54 10h | J98: GEO-SHOP | K98: TECHNOLOGY | L98: R$ 281.01 | M98: R$ 281.01 | N98: Eletrônicos, Áudio e Vídeo | O98: Áudio | P98: 3P
A99: REZAGO | B99: RO-0-020-000-00-00 | C99: XEGE77423 | D99: RZ-568207 | E99: 1 | F99: A | G99: 4474440 | H99: it_support | I99: Chave De Impacto Eletrica 1/2 Pol Bateria Lítio 20v | J99: RAMARTINSBORGESNEGOCIOSLTD | K99: CONSTRUCTION & INDUSTRY | L99: R$ 279.39 | M99: R$ 279.39 | N99: Ferramentas | O99: Ferramentas Elétricas | P99: 3P
A100: REZAGO - RETURNS | B100: RO-0-020-000-00-03 | C100: AXUJ71371 | D100: RZ-540899 | E100: 1 | F100: B | G100: 4494146 | H100: return | I100: Câmera Inteligente Visão 360° Im4 C Intelbras | J100: Mercado Livre Casa | K100: CONSTRUCTION & INDUSTRY | L100: R$ 279.00 | M100: R$ 279.00 | N100: Casa, Móveis e Decoração | O100: Segurança para Casa | P100: 1P | Q100: =VLOOKUP(C100,'Página105'!A:D,4,0) -> 195.83 | R100: =Q100*E100 -> 195.83
A101: REZAGO | B101: RO-0-020-000-00-00 | C101: OIYD77928 | D101: RZ-568207 | E101: 1 | F101: A | G101: 4472598 | H101: withdrawal_stock_disposal_low_rotation | I101: Jogo De Cama Percal 400 Fios 100% Algodão Egípcio Queen 4pçs | J101: SWEET CASA | K101: FURNISHING & HOUSEWARE | L101: R$ 272.07 | M101: R$ 272.07 | N101: Casa, Móveis e Decoração | O101: Têxteis de Casa e Decoração | P101: 3P
A102: REZAGO | B102: RO-0-011-094-00-00 | C102: HYNR41686 | D102: RZ-568359 | E102: 1 | F102: A | G102: 4474444 | H102: it_support | I102: Kit Cilindro Pistão Anéis Dafra Smart 125 Original | J102: SOMOTOSPECAS | K102: VEHICLE PARTS & ACCESSORIES | L102: R$ 271.40 | M102: R$ 271.40 | N102: Acessórios para Veículos | O102: Peças de Motos e Quadriciclos | P102: 3P
A103: REZAGO | B103: RO-0-020-000-00-00 | C103: ESDZ69328 | D103: RZ-568207 | E103: 1 | F103: A | G103: 4472598 | H103: withdrawal_stock_disposal_low_rotation | I103: Jogo De Cama Percal 400 Fios 100% Algodão Egípcio Queen 4pçs | J103: SWEET CASA | K103: FURNISHING & HOUSEWARE | L103: R$ 270.46 | M103: R$ 270.46 | N103: Casa, Móveis e Decoração | O103: Têxteis de Casa e Decoração | P103: 3P
A104: REZAGO | B104: RO-0-011-094-00-00 | C104: SHSB41798 | D104: RZ-541109 | E104: 1 | F104: A | G104: 4474436 | H104: it_support | I104: Nobreak Jbr 600va 220v Para Pc/game/tv/net/cftv Preto | J104: VUC SOLUCOES | K104: TECHNOLOGY | L104: R$ 269.20 | M104: R$ 269.20 | N104: Informática | O104: Estabilizadores e No Breaks | P104: 3P
A105: REZAGO | B105: RO-0-020-000-00-03 | C105: SHSB41798 | D105: RZ-540897 | E105: 1 | F105: A | G105: 4474436 | H105: it_support | I105: Nobreak Jbr 600va 220v Para Pc/game/tv/net/cftv Preto | J105: VUC SOLUCOES | K105: TECHNOLOGY | L105: R$ 269.20 | M105: R$ 269.20 | N105: Informática | O105: Estabilizadores e No Breaks | P105: 3P
A106: REZAGO | B106: RO-0-020-000-00-03 | C106: VLOI40017 | D106: RZ-540897 | E106: 1 | F106: A | G106: 4474440 | H106: it_support | I106: Cuba Gastronômica Gn 1/2 100mm Inox Rechaud Buffet Kit 6 Pçs Prateado | J106: VIVA7MAQUINAS | K106: FURNISHING & HOUSEWARE | L106: R$ 266.43 | M106: R$ 266.43 | N106: Indústria e Comércio | O106: Gastronomia e Hotelaria | P106: 3P
A107: REZAGO | B107: RO-0-020-000-00-00 | C107: ETCZ49224 | D107: RZ-568235 | E107: 1 | F107: A | G107: 4474446 | H107: it_support | I107: Mct Oil Óleo Mct 473ml Ácido Caprílico Bulletproof | J107: NATUOR | K107: HEALTH | L107: R$ 263.99 | M107: R$ 263.99 | N107: Saúde | O107: Suplementos Alimentares | P107: 3P
A108: REZAGO | B108: RO-0-020-000-00-00 | C108: NCVD61217 | D108: RZ-568235 | E108: 1 | F108: A | G108: 4474446 | H108: it_support | I108: Disco Sólido Interno Ssd Plus Sa400s37480g Kingston | J108: AFN SOLUCOESETECNOLOGIA | K108: TECHNOLOGY | L108: R$ 261.58 | M108: R$ 261.58 | N108: Informática | O108: Armazenamento | P108: 3P
A109: REZAGO | B109: RO-0-011-094-00-00 | C109: FCNC70885 | D109: RZ-541109 | E109: 1 | F109: A | G109: 4474440 | H109: it_support | I109: Kit Máquina Km 2600 +acabamento Km 9163+km 1102 Profissional | J109: PR VARIEDADES | K109: BEAUTY | L109: R$ 259.52 | M109: R$ 259.52 | N109: Beleza e Cuidado Pessoal | O109: Artefatos para Cabelo | P109: 3P
A110: REZAGO | B110: RO-0-011-094-00-00 | C110: KVTM94837 | D110: RZ-568359 | E110: 1 | F110: A | G110: 4474444 | H110: it_support | I110: Teclado Gamer Redragon Mitra Qwerty Outemu Brown Português Brasil Cor Preto Com Luz Rgb | J110: ALLTECTECNOLOGIA | K110: TECHNOLOGY | L110: R$ 259.10 | M110: R$ 259.10 | N110: Informática | O110: Periféricos para PC | P110: 3P
A111: REZAGO | B111: RO-0-011-094-00-00 | C111: PVTY70291 | D111: RZ-568357 | E111: 1 | F111: A | G111: 4474444 | H111: it_support | I111: Envelope Plástico Saco Segurança 32x40 Sedex 1000 Unid Cinza | J111: IDPACK | K111: CONSTRUCTION & INDUSTRY | L111: R$ 258.85 | M111: R$ 258.85 | N111: Indústria e Comércio | O111: Embalagem e Logística | P111: 3P
A112: REZAGO | B112: RO-0-011-094-00-00 | C112: AWWT78487 | D112: RZ-568359 | E112: 1 | F112: A | G112: 4472598 | H112: issues | I112: Kit 10 Etiqueta Tag Para Roupas 50x75 Mm + 5 Ribbons | J112: ETIQUETOU | K112: CONSTRUCTION & INDUSTRY | L112: R$ 256.55 | M112: R$ 256.55 | N112: Arte, Papelaria e Armarinho | O112: Materiais Escolares | P112: 3P
A113: REZAGO | B113: RO-0-006-077-00-00 | C113: FJTG35256 | D113: RZ-540991 | E113: 1 | F113: A | G113: 4472600 | H113: issues | I113: Copo Quencher Stanley 887ml Garrafa Termica Canudo Original | J113: ALLOS_STORE | K113: SPORTS | L113: R$ 254.86 | M113: R$ 254.86 | N113: Esportes e Fitness | O113: Camping, Caça e Pesca | P113: 3P
A114: REZAGO | B114: RO-0-006-077-00-00 | C114: SWUP90369 | D114: RZ-540991 | E114: 1 | F114: A | G114: 4472598 | H114: withdrawal_stock_disposal_low_rotation | I114: Kit De Mergulho Netuno Hd Lente Ambar Dive Motion | J114: LOJA OUTSIDE_OFICIAL | K114: SPORTS | L114: R$ 252.76 | M114: R$ 252.76 | N114: Esportes e Fitness | O114: Mergulho | P114: 3P
A115: REZAGO | B115: RO-0-011-094-00-00 | C115: KAGH88911 | D115: RZ-541109 | E115: 1 | F115: A | G115: 4474446 | H115: it_support | I115: Conjunto Camisa Polo Cotton Linho Bermuda Jeans Liz Menino | J115: LOLOBABYEKIDS | K115: FASHION | L115: R$ 252.74 | M115: R$ 252.74 | N115: Calçados, Roupas e Bolsas | O115: Kits de Conjuntos de Roupa | P115: 3P
A116: REZAGO | B116: RO-0-006-077-00-00 | C116: ZIKZ27465 | D116: RZ-540991 | E116: 1 | F116: A | G116: 4474440 | H116: it_support | I116: Caixa Umidora De Charutos Com Umidificador Para 10 Charutos | J116: DIVERSE PRESENTES | K116: OTHERS | L116: R$ 251.64 | M116: R$ 251.64 | N116: Mais Categorias | O116: Artigos para Fumadores | P116: 3P
A117: REZAGO | B117: RO-0-020-000-00-00 | C117: MVJC39878 | D117: RZ-568207 | E117: 1 | F117: A | G117: 4474436 | H117: it_support | I117: 2 Lustre Pendente Gota Desig Moderno Rustico Mdf Preto Bivol | J117: ATACADÃO ARTESANATO | K117: CONSTRUCTION & INDUSTRY | L117: R$ 249.40 | M117: R$ 249.40 | N117: Casa, Móveis e Decoração | O117: Iluminação Residencial | P117: 3P
A118: REZAGO | B118: RO-0-011-094-00-00 | C118: JAOF82444 | D118: RZ-541109 | E118: 1 | F118: A | G118: 4472600 | H118: issues | I118: Coxim Calço Motor Lado Direito Renegade / Toro 2.0 Diesel | J118: AUTOCAR EXPRESS | K118: VEHICLE PARTS & ACCESSORIES | L118: R$ 248.92 | M118: R$ 248.92 | N118: Acessórios para Veículos | O118: Peças de Carros e Caminhonetes | P118: 3P
A119: REZAGO | B119: RO-0-006-077-00-00 | C119: WDUM12630 | D119: RZ-540991 | E119: 1 | F119: A | G119: 4474434 | H119: it_support | I119: Plastificadora Laminadora A4 , Fria/quente Laminadora, Velocidade 280 Mm/min, Abs Anti-travamento, Com 9 Folhas Para Laminação, Ideal Para Escolas E Casas 127v | J119: LL20240927153611 | K119: CONSTRUCTION & INDUSTRY | L119: R$ 248.90 | M119: R$ 248.90 | N119: Indústria e Comércio | O119: Gráfica e Impressão | P119: 3P
A120: REZAGO | B120: RO-0-020-000-00-00 | C120: NUWP99119 | D120: RZ-568207 | E120: 1 | F120: A | G120: 4472596 | H120: issues | I120: Relógio Feminino Champion Catraquinha + Kit Colar Brincos Cor Da Correia Bicolor Cor Do Bisel Bicolor Cor Do Fundo Branco | J120: RBM WEBSHOP | K120: FASHION | L120: R$ 247.97 | M120: R$ 247.97 | N120: Joias e Relógios | O120: Relógios | P120: 3P
A121: REZAGO | B121: RO-0-011-094-00-00 | C121: AEES49712 | D121: RZ-541109 | E121: 1 | F121: A | G121: 4474440 | H121: it_support | I121: Kit 3 Câmera Ip Giratória Wifi Lâmpada + Cartão Memória 32gb | J121: VIA_BORGE_STORE | K121: CONSTRUCTION & INDUSTRY | L121: R$ 247.70 | M121: R$ 247.70 | N121: Casa, Móveis e Decoração | O121: Segurança para Casa | P121: 3P
A122: REZAGO | B122: RO-0-020-000-00-00 | C122: CIQM95237 | D122: RZ-568235 | E122: 1 | F122: A | G122: 4474428 | H122: it_support | I122: Talha Manual Elevação 1 Tonelada 3 Metros Corrente Rotta 376 | J122: PRUDENTE FERRAMENTAS | K122: CONSTRUCTION & INDUSTRY | L122: R$ 246.51 | M122: R$ 246.51 | N122: Ferramentas | O122: Ferramentas Industriais | P122: 3P
A123: REZAGO | B123: RO-0-011-094-00-00 | C123: NVJT45338 | D123: RZ-568357 | E123: 1 | F123: A | G123: 4474446 | H123: issues | I123: Microfone Duplo Redução De Ruído Sem Fio Magnético Zcco J6 | J123: TUDOTUDO20231213151918 | K123: ENTERTAINMENT | L123: R$ 244.33 | M123: R$ 244.33 | N123: Instrumentos Musicais | O123: Microfones e Amplificadores | P123: 3P
A124: REZAGO | B124: RO-0-006-077-00-00 | C124: NGLO83180 | D124: RZ-540991 | E124: 2 | F124: A | G124: 4472598 | H124: withdrawal_stock_disposal_low_rotation | I124: Samsung Smartwatch Galaxy Fit3 Grafite | J124: TNTINFO | K124: TECHNOLOGY | L124: R$ 242.08 | M124: R$ 484.16 | N124: Celulares e Telefones | O124: Smartwatches e Acessórios | P124: 3P
A125: REZAGO | B125: RO-0-020-000-00-00 | C125: WZHT44739 | D125: RZ-568235 | E125: 1 | F125: A | G125: 4472596 | H125: issues | I125: Chuteira Penalty Futsal Max 1000 Locker Ecoknit Salão Quadra | J125: KF TÊNIS | K125: FASHION | L125: R$ 240.82 | M125: R$ 240.82 | N125: Esportes e Fitness | O125: Futebol | P125: 3P
A126: REZAGO | B126: RO-0-011-094-00-00 | C126: LXMC01719 | D126: RZ-541109 | E126: 1 | F126: A | G126: 4472600 | H126: issues | I126: Porta Óculos Moldura Volkswagen Jetta Gli R-line Original | J126: IG COMERCIO | K126: VEHICLE PARTS & ACCESSORIES | L126: R$ 240.70 | M126: R$ 240.70 | N126: Acessórios para Veículos | O126: Peças de Carros e Caminhonetes | P126: 3P
A127: REZAGO | B127: RO-0-011-094-00-00 | C127: PJZU23046 | D127: RZ-541109 | E127: 1 | F127: A | G127: 4472596 | H127: withdrawal_stock_disposal_low_rotation | I127: Ojo®5g Wifi Câmeras De Segurança 12mp Lente Dupla Tela Dupla | J127: AA20250123184643 | K127: CONSTRUCTION & INDUSTRY | L127: R$ 239.90 | M127: R$ 239.90 | N127: Casa, Móveis e Decoração | O127: Segurança para Casa | P127: 3P
A128: REZAGO | B128: RO-0-020-000-00-03 | C128: PJZU23046 | D128: RZ-540897 | E128: 1 | F128: A | G128: 4472596 | H128: withdrawal_stock_disposal_low_rotation | I128: Ojo®5g Wifi Câmeras De Segurança 12mp Lente Dupla Tela Dupla | J128: AA20250123184643 | K128: CONSTRUCTION & INDUSTRY | L128: R$ 239.90 | M128: R$ 239.90 | N128: Casa, Móveis e Decoração | O128: Segurança para Casa | P128: 3P
A129: REZAGO | B129: RO-0-020-000-00-03 | C129: VUOQ77013 | D129: RZ-540897 | E129: 1 | F129: A | G129: 4474434 | H129: it_support | I129: Chuteira De Futsal Topper Dominator Pro 1 Couro Natural | J129: SLOTHSPORTING | K129: FASHION | L129: R$ 238.77 | M129: R$ 238.77 | N129: Esportes e Fitness | O129: Futebol | P129: 3P
A130: REZAGO | B130: RO-0-020-000-00-00 | C130: DIJS50691 | D130: RZ-568207 | E130: 1 | F130: A | G130: 4474440 | H130: it_support | I130: Escova Secadora Modeladora Taiff Oval Easy Verde | J130: PINK ESHOP | K130: BEAUTY | L130: R$ 237.59 | M130: R$ 237.59 | N130: Beleza e Cuidado Pessoal | O130: Artefatos para Cabelo | P130: 3P
A131: REZAGO | B131: RO-0-011-094-00-00 | C131: UFWY01598 | D131: RZ-568357 | E131: 1 | F131: A | G131: 4474436 | H131: it_support | I131: Maleta De Transporte Kit C/13 Peças L-boxx 102 Bosch | J131: CASADASSERRASOFICIAL | K131: CONSTRUCTION & INDUSTRY | L131: R$ 235.68 | M131: R$ 235.68 | N131: Ferramentas | O131: Caixas e Organizadores | P131: 3P
A132: REZAGO | B132: RO-0-020-000-00-00 | C132: UVZU81130 | D132: RZ-568207 | E132: 1 | F132: A | G132: 4472600 | H132: issues | I132: Hd Ssd Disco Sólido Interno Up Gamer Up500 480gb Preto | J132: LORDGAMESRPOLORDGAMESRPO | K132: TECHNOLOGY | L132: R$ 234.80 | M132: R$ 234.80 | N132: Informática | O132: Armazenamento | P132: 3P
A133: REZAGO | B133: RO-0-011-094-00-00 | C133: KZHN83200 | D133: RZ-568433 | E133: 1 | F133: A | G133: 4474444 | H133: it_support | I133: Resistor Da Ventoinha Original Kia Hyundai 253853z000 | J133: BENS AUTO_PEÇAS | K133: HOME ELECTRONICS | L133: R$ 234.80 | M133: R$ 234.80 | N133: Eletrônicos, Áudio e Vídeo | O133: Componentes Eletrônicos | P133: 3P
A134: REZAGO | B134: RO-0-011-094-00-00 | C134: WMEZ06784 | D134: RZ-568357 | E134: 1 | F134: A | G134: 4474442 | H134: it_support | I134: Cartucho Toner P/samsung Clt-y504s/xaz Amarelo 1800 Original | J134: SHOPCLIK | K134: TECHNOLOGY | L134: R$ 233.70 | M134: R$ 233.70 | N134: Informática | O134: Impressão | P134: 3P
A135: REZAGO | B135: RO-0-020-000-00-00 | C135: WMEZ06784 | D135: RZ-568235 | E135: 1 | F135: A | G135: 4474442 | H135: it_support | I135: Cartucho Toner P/samsung Clt-y504s/xaz Amarelo 1800 Original | J135: SHOPCLIK | K135: TECHNOLOGY | L135: R$ 233.70 | M135: R$ 233.70 | N135: Informática | O135: Impressão | P135: 3P
A136: REZAGO - RETURNS | B136: RO-0-020-000-00-03 | C136: MZKM25543 | D136: RZ-540899 | E136: 1 | F136: B | G136: 4460374 | H136: return | I136: adidas Sportswear Vl Court Base Feminino Adultos Id3714 | J136: Mercado Livre Moda | K136: FASHION | L136: R$ 232.99 | M136: R$ 232.99 | N136: Calçados, Roupas e Bolsas | O136: Calçados | P136: 1P | Q136: =VLOOKUP(C136,'Página105'!A:D,4,0) -> 133.54 | R136: =Q136*E136 -> 133.54
A137: REZAGO - RETURNS | B137: RO-0-006-077-00-00 | C137: WZMP51600 | D137: RZ-568343 | E137: 1 | F137: D | G137: 4494146 | H137: return | I137: Liquidificador Série 5000 Ri2240 1200w Philips Walita Cor Vermelho | J137: Mercado Livre Eletronicos | K137: HOME ELECTRONICS | L137: R$ 231.72 | M137: R$ 231.72 | N137: Eletrodomésticos | O137: Pequenos Eletrodomésticos | P137: 1P | Q137: =VLOOKUP(C137,'Página105'!A:D,4,0) -> 154.05 | R137: 154.05
A138: REZAGO | B138: RO-0-011-094-00-00 | C138: QQYF67942 | D138: RZ-568359 | E138: 1 | F138: A | G138: 4474434 | H138: it_support | I138: Lixeira Americana Lata De Lixo Vintage 30 Litros Galvanizado Cor Cinza | J138: LOJA BORADECORA | K138: FURNISHING & HOUSEWARE | L138: R$ 231.14 | M138: R$ 231.14 | N138: Casa, Móveis e Decoração | O138: Cozinha | P138: 3P
A139: REZAGO | B139: RO-0-020-000-00-00 | C139: YFEP28029 | D139: RZ-568207 | E139: 1 | F139: A | G139: 4474436 | H139: it_support | I139: Chuteira Society Topper Dominator Td Iv Original Com Nf | J139: DPLUVAS01 | K139: FASHION | L139: R$ 230.09 | M139: R$ 230.09 | N139: Esportes e Fitness | O139: Futebol | P139: 3P
A140: REZAGO | B140: RO-0-011-094-00-00 | C140: EXWA72090 | D140: RZ-541109 | E140: 1 | F140: A | G140: 4474434 | H140: it_support | I140: Lingerie Atacado Kit Com 10 Conjuntos | J140: MARY -STORE | K140: FASHION | L140: R$ 229.89 | M140: R$ 229.89 | N140: Calçados, Roupas e Bolsas | O140: Moda Íntima e Lingerie | P140: 3P
A141: REZAGO | B141: RO-0-011-094-00-00 | C141: RLPS94329 | D141: RZ-568357 | E141: 1 | F141: A | G141: 4472598 | H141: issues | I141: Tênis Masculino Beats Olympikus | J141: OROBALTOSPORTS | K141: FASHION | L141: R$ 229.54 | M141: R$ 229.54 | N141: Calçados, Roupas e Bolsas | O141: Calçados | P141: 3P
A142: REZAGO | B142: RO-0-011-094-00-00 | C142: UCMR72536 | D142: RZ-568359 | E142: 1 | F142: A | G142: 4474434 | H142: it_support | I142: Par Ultra Led Asx 70w 10.000 Lúmens Bivolt 6000k C/ Cooler | J142: W4U COMÉRCIO | K142: VEHICLE PARTS & ACCESSORIES | L142: R$ 228.80 | M142: R$ 228.80 | N142: Acessórios para Veículos | O142: Tuning | P142: 3P
A143: REZAGO | B143: RO-0-020-000-00-03 | C143: JNVU80149 | D143: RZ-540897 | E143: 1 | F143: A | G143: 4472600 | H143: issues | I143: Protetor De Mão Nc750x 750 Cb500 X 500x Nc750 Nc700 700 N Cb | J143: NOVAESMOTOPEÇAS | K143: VEHICLE PARTS & ACCESSORIES | L143: R$ 226.50 | M143: R$ 226.50 | N143: Acessórios para Veículos | O143: Aces. de Motos e Quadriciclos | P143: 3P
A144: REZAGO | B144: RO-0-020-000-00-00 | C144: LSYS56960 | D144: RZ-568207 | E144: 1 | F144: A | G144: 4474444 | H144: it_support | I144: Disco Sólido Interno Ssd Plus Sa400s37480g Kingston | J144: ICONNECT DIGITAL | K144: TECHNOLOGY | L144: R$ 226.18 | M144: R$ 226.18 | N144: Informática | O144: Armazenamento | P144: 3P
A145: REZAGO | B145: RO-0-006-077-00-00 | C145: XYEN82284 | D145: RZ-540991 | E145: 1 | F145: A | G145: 4472600 | H145: issues | I145: Torneira Para Cozinha Extensível Monocomando Cromado Prata Prateado Cromado | J145: LUCIMARSHOP | K145: CONSTRUCTION & INDUSTRY | L145: R$ 225.44 | M145: R$ 225.44 | N145: Construção | O145: Mobiliário para Cozinhas | P145: 3P
A146: REZAGO | B146: RO-0-020-000-00-00 | C146: JAZN06830 | D146: RZ-568235 | E146: 1 | F146: A | G146: 4474440 | H146: it_support | I146: Ventosa Sucção A Vácuo 110 Kg Vidros Pisos Mármore Titanium | J146: CASADASSERRASOFICIAL | K146: CONSTRUCTION & INDUSTRY | L146: R$ 224.41 | M146: R$ 224.41 | N146: Ferramentas | O146: Ferramentas Manuais | P146: 3P
A147: REZAGO | B147: RO-0-020-000-00-00 | C147: MUXV76913 | D147: RZ-568235 | E147: 1 | F147: A | G147: 4474446 | H147: it_support | I147: Bomba Vibratória 900 Para Poço Caipira 450w Com Saída De 3/4 | J147: CASADASBOMBAS17 | K147: CONSTRUCTION & INDUSTRY | L147: R$ 221.95 | M147: R$ 221.95 | N147: Construção | O147: Encanamento | P147: 3P
A148: REZAGO | B148: RO-0-020-000-00-03 | C148: MUXV76913 | D148: RZ-540897 | E148: 1 | F148: A | G148: 4474446 | H148: it_support | I148: Bomba Vibratória 900 Para Poço Caipira 450w Com Saída De 3/4 | J148: CASADASBOMBAS17 | K148: CONSTRUCTION & INDUSTRY | L148: R$ 221.95 | M148: R$ 221.95 | N148: Construção | O148: Encanamento | P148: 3P
A149: REZAGO | B149: RO-0-020-000-00-03 | C149: PZJI93806 | D149: RZ-540897 | E149: 1 | F149: A | G149: 4474434 | H149: it_support | I149: Bastão Retrátil Kit2 Liga De Aço Defesa Pessoal 66/78/101cm | J149: VAVA20231220095003 | K149: SPORTS | L149: R$ 221.24 | M149: R$ 221.24 | N149: Esportes e Fitness | O149: Artes Marciais e Boxe | P149: 3P
A150: REZAGO - RETURNS | B150: RO-0-006-077-00-00 | C150: TVZP76754 | D150: RZ-568343 | E150: 1 | F150: E | G150: 4460374 | H150: return | I150: Fralda Pampers Premium Care Tamanho Xxxg 104 Unidades | J150: Mercado Livre Brasil | K150: CPG | L150: R$ 219.90 | M150: R$ 219.90 | N150: Bebês | O150: Higiene e Cuidados com o Bebê | P150: 1P | Q150: =VLOOKUP(C150,'Página105'!A:D,4,0) -> 221.22 | R150: =Q150*E150 -> 221.22
A151: REZAGO - RETURNS | B151: RO-0-020-000-00-03 | C151: IOIG57073 | D151: RZ-540899 | E151: 1 | F151: B | G151: 4494146 | H151: return | I151: Furadeira Elétrica De Impacto 13mm 750w Mondial Ffi-05 | J151: Mercado Livre Casa | K151: CONSTRUCTION & INDUSTRY | L151: R$ 219.34 | M151: R$ 219.34 | N151: Ferramentas | O151: Ferramentas Elétricas | P151: 1P | Q151: =VLOOKUP(C151,'Página105'!A:D,4,0) -> 147.22 | R151: 147.22
A152: REZAGO | B152: RO-0-020-000-00-03 | C152: ZAZV35084 | D152: RZ-540897 | E152: 1 | F152: A | G152: 4474434 | H152: it_support | I152: Tenis Segurança En10023 Bico Composite Estival Com Ca | J152: MZCALÇADOS | K152: CONSTRUCTION & INDUSTRY | L152: R$ 219.14 | M152: R$ 219.14 | N152: Indústria e Comércio | O152: Segurança Laboral | P152: 3P
A153: REZAGO | B153: RO-0-020-000-00-03 | C153: LQQM03107 | D153: RZ-540897 | E153: 1 | F153: A | G153: 4472598 | H153: withdrawal_stock_disposal_low_rotation | I153: Bota Segurança Estival En10071 Microfibra Leve | J153: MZCALÇADOS | K153: CONSTRUCTION & INDUSTRY | L153: R$ 217.58 | M153: R$ 217.58 | N153: Indústria e Comércio | O153: Segurança Laboral | P153: 3P
A154: REZAGO | B154: RO-0-006-077-00-00 | C154: BDKS03260 | D154: RZ-540991 | E154: 1 | F154: A | G154: 4472598 | H154: withdrawal_stock_disposal_low_rotation | I154: Bota Segurança Estival En10071 Microfibra Leve | J154: MZCALÇADOS | K154: CONSTRUCTION & INDUSTRY | L154: R$ 217.58 | M154: R$ 217.58 | N154: Indústria e Comércio | O154: Segurança Laboral | P154: 3P
A155: REZAGO | B155: RO-0-011-094-00-00 | C155: GCDT05213 | D155: RZ-541109 | E155: 1 | F155: A | G155: 4472596 | H155: issues | I155: Kit Rodízio Com 3 Rodinhas Com Freio Para Tripé De 25mm Sou Foto Rpt-001 | J155: FOTOLUX BRASIL | K155: FURNISHING & HOUSEWARE | L155: R$ 215.60 | M155: R$ 215.60 | N155: Casa, Móveis e Decoração | O155: Móveis para Casa | P155: 3P
A156: REZAGO | B156: RO-0-011-094-00-00 | C156: KJAG65321 | D156: RZ-568357 | E156: 1 | F156: A | G156: 4472596 | H156: issues | I156: Kit Performance Rolete Polia Preparada N-max 160 2016 Á 2019 Prateado | J156: FTPMOTOPECAS | K156: VEHICLE PARTS & ACCESSORIES | L156: R$ 214.97 | M156: R$ 214.97 | N156: Acessórios para Veículos | O156: Peças de Motos e Quadriciclos | P156: 3P
A157: REZAGO | B157: RO-0-011-094-00-00 | C157: JHXN75072 | D157: RZ-541109 | E157: 1 | F157: A | G157: 4474442 | H157: it_support | I157: Recoil Easy Facil Start Baja 23 26 29 30.5cc Rovan 1/5 5b 5t | J157: SILVEIRAESHOP | K157: T & B | L157: R$ 213.55 | M157: R$ 213.55 | N157: Brinquedos e Hobbies | O157: Hobbies | P157: 3P
A158: REZAGO | B158: RO-0-020-000-00-00 | C158: WFLQ89761 | D158: RZ-568235 | E158: 1 | F158: A | G158: 4474442 | H158: it_support | I158: Memória 16gb 2400 Compatível Lenovo Ideapad S145 81s90003br | J158: CDI_ECOM | K158: TECHNOLOGY | L158: R$ 213.14 | M158: R$ 213.14 | N158: Informática | O158: Componentes para PC | P158: 3P
A159: REZAGO | B159: RO-0-020-000-00-00 | C159: GCTB96856 | D159: RZ-568235 | E159: 1 | F159: A | G159: 4474446 | H159: it_support | I159: Adi Dao 4,2mg - 60 Cápsulas : Intolerância A Histamina Neutro | J159: NATURALLIS FARMÁCIADEMANIP. | K159: HEALTH | L159: R$ 212.80 | M159: R$ 212.80 | N159: Saúde | O159: Suplementos Alimentares | P159: 3P
A160: REZAGO | B160: RO-0-011-094-00-00 | C160: QBRT84489 | D160: RZ-541109 | E160: 1 | F160: A | G160: 4472596 | H160: issues | I160: Fechadura Elétrica New Fiesta Dianteira Direita 2016 2017 | J160: CANTELLO PARTS | K160: VEHICLE PARTS & ACCESSORIES | L160: R$ 212.48 | M160: R$ 212.48 | N160: Acessórios para Veículos | O160: Peças de Carros e Caminhonetes | P160: 3P
A161: REZAGO | B161: RO-0-020-000-00-00 | C161: MIXG14743 | D161: RZ-568207 | E161: 1 | F161: A | G161: 4474440 | H161: it_support | I161: Kit 10 Pares Meião De Futebol Degrade Edm Sport | J161: EDM_SPORT | K161: SPORTS | L161: R$ 212.40 | M161: R$ 212.40 | N161: Esportes e Fitness | O161: Futebol | P161: 3P
A162: REZAGO | B162: RO-0-020-000-00-03 | C162: NTHX43299 | D162: RZ-540897 | E162: 1 | F162: A | G162: 4472600 | H162: issues | I162: Tela Notebook Acer Aspire A315-23 N19c1 N18q13 N156bga-ea3 | J162: SAMPA-DIGITAL | K162: TECHNOLOGY | L162: R$ 211.57 | M162: R$ 211.57 | N162: Informática | O162: Portáteis e Acessórios | P162: 3P
A163: REZAGO | B163: RO-0-006-077-00-00 | C163: VSHJ12010 | D163: RZ-540991 | E163: 1 | F163: A | G163: 4474440 | H163: it_support | I163: 1000 Espaçador Nivelador Para Piso Porcelanato Cortag | J163: LOJAMOLETONIA | K163: CONSTRUCTION & INDUSTRY | L163: R$ 211.52 | M163: R$ 211.52 | N163: Ferramentas | O163: Ferramentas Manuais | P163: 3P
A164: REZAGO | B164: RO-0-011-094-00-00 | C164: OISN00829 | D164: RZ-541109 | E164: 1 | F164: A | G164: 4474434 | H164: it_support | I164: Vareta De Solda Tig De Magnêsio 3,25mm Aws03 Com 100g Cor Da Punta Prateado | J164: GRIMAQBRASIL | K164: CONSTRUCTION & INDUSTRY | L164: R$ 208.67 | M164: R$ 208.67 | N164: Ferramentas | O164: Acessórios para Ferramentas | P164: 3P
A165: REZAGO | B165: RO-0-020-000-00-00 | C165: GBOB88515 | D165: RZ-568235 | E165: 1 | F165: A | G165: 4474442 | H165: it_support | I165: Disco De Freio Bike Sentec 160mm Rotor 6 Furos Inox Cor Preto | J165: FIRE BIKES | K165: SPORTS | L165: R$ 207.92 | M165: R$ 207.92 | N165: Esportes e Fitness | O165: Ciclismo | P165: 3P
A166: REZAGO | B166: RO-0-011-094-00-00 | C166: NAAE03512 | D166: RZ-568357 | E166: 1 | F166: A | G166: 4474442 | H166: it_support | I166: Fogão Cooktop Elétrico 2 Duas Bocas Portátil 110v C/ Inmetro | J166: TEMDTUDO AUTOS | K166: HOME ELECTRONICS | L166: R$ 204.70 | M166: R$ 204.70 | N166: Eletrodomésticos | O166: Fornos e Fogões | P166: 3P
A167: REZAGO | B167: RO-0-011-094-00-00 | C167: FBVV03554 | D167: RZ-568359 | E167: 1 | F167: A | G167: 4474436 | H167: it_support | I167: Kit Cabos E Velas Ngk Renault Logan Sandero Symbol 1.6 8v Preto | J167: ABC AUTOPARTS | K167: VEHICLE PARTS & ACCESSORIES | L167: R$ 201.85 | M167: R$ 201.85 | N167: Acessórios para Veículos | O167: Peças de Carros e Caminhonetes | P167: 3P
A168: REZAGO - RETURNS | B168: RO-0-020-000-00-03 | C168: JDOJ65833 | D168: RZ-540899 | E168: 1 | F168: C | G168: 4460374 | H168: return | I168: Liquidificador Full 1400w 15 Velocidades Oliq610 Preto Oster | J168: Mercado Livre Eletronicos | K168: HOME ELECTRONICS | L168: R$ 201.26 | M168: R$ 201.26 | N168: Eletrodomésticos | O168: Pequenos Eletrodomésticos | P168: 1P | Q168: =VLOOKUP(C168,'Página105'!A:D,4,0) -> 140.65 | R168: =Q168*E168 -> 140.65
A169: REZAGO | B169: RO-0-020-000-00-00 | C169: APIJ01386 | D169: RZ-568207 | E169: 1 | F169: A | G169: 4474440 | H169: it_support | I169: Cartão Microsdxc Sandisk Extreme De 256 Gb Com Adaptador Sd 190 Mb/s 130 Mb/s | J169: ATS AUDIOEVIDEO | K169: TECHNOLOGY | L169: R$ 200.96 | M169: R$ 200.96 | N169: Celulares e Telefones | O169: Acessórios para Celulares | P169: 3P
A170: REZAGO | B170: RO-0-011-094-00-00 | C170: GUHD77565 | D170: RZ-541109 | E170: 1 | F170: A | G170: 4474442 | H170: it_support | I170: Kit Luvas De Boxe Muay Thai Naja Black + Protetor + Bucal | J170: SLOTHSPORTING | K170: SPORTS | L170: R$ 200.58 | M170: R$ 200.58 | N170: Esportes e Fitness | O170: Artes Marciais e Boxe | P170: 3P
A171: REZAGO | B171: RO-0-020-000-00-00 | C171: DMEY77963 | D171: RZ-568207 | E171: 1 | F171: A | G171: 4474444 | H171: it_support | I171: Kit Luvas De Boxe Muay Thai Naja Black + Protetor + Bucal | J171: SLOTHSPORTING | K171: SPORTS | L171: R$ 200.58 | M171: R$ 200.58 | N171: Esportes e Fitness | O171: Artes Marciais e Boxe | P171: 3P
A172: REZAGO - RETURNS | B172: RO-0-020-000-00-03 | C172: JDBD96467 | D172: RZ-540899 | E172: 1 | F172: B | G172: 4460374 | H172: return | I172: Tênis Feminino Grand Court Base 2.0 adidas | J172: Mercado Livre Moda | K172: FASHION | L172: R$ 199.99 | M172: R$ 199.99 | N172: Calçados, Roupas e Bolsas | O172: Calçados | P172: 1P | Q172: =VLOOKUP(C172,'Página105'!A:D,4,0) -> 115.62 | R172: =Q172*E172 -> 115.62
A173: REZAGO - RETURNS | B173: RO-0-006-077-00-00 | C173: OBEK87083 | D173: RZ-568343 | E173: 1 | F173: B | G173: 4494146 | H173: return | I173: Fritadeira Air Fryer Elétrica Start Fry 3,5l Elgin | J173: Mercado Livre Eletronicos | K173: HOME ELECTRONICS | L173: R$ 199.90 | M173: R$ 199.90 | N173: Eletrodomésticos | O173: Pequenos Eletrodomésticos | P173: 1P | Q173: =VLOOKUP(C173,'Página105'!A:D,4,0) -> 153.6 | R173: 153.6
A174: REZAGO - RETURNS | B174: RO-0-020-000-00-03 | C174: IQFJ81218 | D174: RZ-540899 | E174: 1 | F174: E | G174: 4494146 | H174: return | I174: Fralda Pampers Pants Ajuste Total Tamanho G 144 Unidades | J174: Mercado Livre Brasil | K174: CPG | L174: R$ 199.90 | M174: R$ 199.90 | N174: Bebês | O174: Higiene e Cuidados com o Bebê | P174: 1P | Q174: =VLOOKUP(C174,'Página105'!A:D,4,0) -> 210.01 | R174: 210.01
A175: REZAGO - RETURNS | B175: RO-0-006-077-00-00 | C175: CHKF80371 | D175: RZ-568343 | E175: 1 | F175: E | G175: 4494146 | H175: return | I175: Fralda Pampers Pants Ajuste Total Tamanho Xg, 132 Unidades | J175: Mercado Livre Brasil | K175: CPG | L175: R$ 199.90 | M175: R$ 199.90 | N175: Bebês | O175: Higiene e Cuidados com o Bebê | P175: 1P | Q175: =VLOOKUP(C175,'Página105'!A:D,4,0) -> 203.78 | R175: 203.78
A176: REZAGO | B176: RO-0-011-094-00-00 | C176: VTYF98336 | D176: RZ-568357 | E176: 1 | F176: A | G176: 4474436 | H176: it_support | I176: Motor Atuador Caixa De Ar Condicionado Ranger 2012/2023 Orig | J176: RADIARONLINE COMPONENTES | K176: VEHICLE PARTS & ACCESSORIES | L176: R$ 199.35 | M176: R$ 199.35 | N176: Acessórios para Veículos | O176: Peças de Carros e Caminhonetes | P176: 3P
A177: REZAGO | B177: RO-0-006-077-00-00 | C177: VTYF98336 | D177: RZ-540991 | E177: 1 | F177: A | G177: 4474436 | H177: it_support | I177: Motor Atuador Caixa De Ar Condicionado Ranger 2012/2023 Orig | J177: RADIARONLINE COMPONENTES | K177: VEHICLE PARTS & ACCESSORIES | L177: R$ 199.35 | M177: R$ 199.35 | N177: Acessórios para Veículos | O177: Peças de Carros e Caminhonetes | P177: 3P
A178: REZAGO | B178: RO-0-020-000-00-00 | C178: PBWL60241 | D178: RZ-568207 | E178: 1 | F178: A | G178: 4474434 | H178: it_support | I178: Havit Fone De Ouvido Headset Gamer Fuxi-h3 Quad-mode (com Fio E Sem Fio, Wireless 2,4ghz, Bluetooth, Cabo Usb-c, Cabo Auxiliar 3.5mm). Surround, Baixa Latência - Preto | J178: BAZOOKA ECOMMERCE | K178: TECHNOLOGY | L178: R$ 199.23 | M178: R$ 199.23 | N178: Informática | O178: Acessórios para PC Gaming | P178: 3P
A179: REZAGO - RETURNS | B179: RO-0-020-000-00-03 | C179: PWFJ76016 | D179: RZ-540899 | E179: 1 | F179: D | G179: 4460374 | H179: return | I179: Aspirador De Pó Vertical Com Fio Portátil De Mão 2 Em 1 1450w De Potencia Com Cabo Elétrico De 6 Metros E 1,6 Litros De Capacidade Com Filtro Hepa Electrolux Stk15 Cinza Urban Grey | J179: Mercado Livre Eletronicos | K179: HOME ELECTRONICS | L179: R$ 197.02 | M179: R$ 197.02 | N179: Eletrodomésticos | O179: Pequenos Eletrodomésticos | P179: 1P | Q179: =VLOOKUP(C179,'Página105'!A:D,4,0) -> 155.73 | R179: =Q179*E179 -> 155.73
A180: REZAGO | B180: RO-0-011-094-00-00 | C180: PWFC34168 | D180: RZ-541109 | E180: 1 | F180: A | G180: 4474442 | H180: it_support | I180: Mecolour Easy Iron Mini Prensa Térmica Cor Azul | J180: DRIVE NEW | K180: CONSTRUCTION & INDUSTRY | L180: R$ 197.00 | M180: R$ 197.00 | N180: Indústria e Comércio | O180: Têxtil e Calçado | P180: 3P
A181: REZAGO - RETURNS | B181: RO-0-020-000-00-03 | C181: GBSC18929 | D181: RZ-540899 | E181: 1 | F181: C | G181: 4460374 | H181: return | I181: Porteiro Residencial Ipr 8010 Preto/branco Intelbras | J181: Mercado Livre Casa | K181: CONSTRUCTION & INDUSTRY | L181: R$ 195.94 | M181: R$ 195.94 | N181: Casa, Móveis e Decoração | O181: Segurança para Casa | P181: 1P | Q181: =VLOOKUP(C181,'Página105'!A:D,4,0) -> 147.18 | R181: =Q181*E181 -> 147.18
A182: REZAGO - RETURNS | B182: RO-0-006-077-00-00 | C182: HTZZ32421 | D182: RZ-568343 | E182: 1 | F182: E | G182: 4494146 | H182: return | I182: Philips Colgate Sonicpro Escova Elétrica Infantil | J182: Mercado Livre Brasil | K182: HEALTH | L182: R$ 194.59 | M182: R$ 194.59 | N182: Beleza e Cuidado Pessoal | O182: Higiene Pessoal | P182: 1P | Q182: =VLOOKUP(C182,'Página105'!A:D,4,0) -> 252.07 | R182: 252.07
A183: REZAGO | B183: RO-0-011-094-00-00 | C183: QMQB11036 | D183: RZ-568357 | E183: 1 | F183: A | G183: 4474446 | H183: it_support | I183: Vestido Festa Junina Caipira Xadrez Adulto Azul | J183: FANTASIA ADORO | K183: FASHION | L183: R$ 194.39 | M183: R$ 194.39 | N183: Calçados, Roupas e Bolsas | O183: Vestidos | P183: 3P
A184: REZAGO | B184: RO-0-011-094-00-00 | C184: RZGE73759 | D184: RZ-568357 | E184: 1 | F184: A | G184: 4472596 | H184: issues | I184: Jato D'água Irrigador Oral Higiene Limpeza Bucal E Dental | J184: NOWBUYOFICIAL | K184: HEALTH | L184: R$ 193.57 | M184: R$ 193.57 | N184: Beleza e Cuidado Pessoal | O184: Higiene Pessoal | P184: 3P
A185: REZAGO | B185: RO-0-020-000-00-00 | C185: PFHA28824 | D185: RZ-568207 | E185: 1 | F185: A | G185: 4472598 | H185: issues | I185: Micropipeta Volume Variável 10-100 Ul C Certificado Peguepet | J185: LABMKT | K185: HEALTH | L185: R$ 193.51 | M185: R$ 193.51 | N185: Saúde | O185: Equipamento Médico | P185: 3P
A186: REZAGO | B186: RO-0-020-000-00-03 | C186: LIDP34414 | D186: RZ-540897 | E186: 1 | F186: A | G186: 4474446 | H186: it_support | I186: Sapato Masculino 775 London | J186: HGSPORTSARTIGOSESPORTIVOSE | K186: FASHION | L186: R$ 193.43 | M186: R$ 193.43 | N186: Calçados, Roupas e Bolsas | O186: Calçados | P186: 3P
A187: REZAGO | B187: RO-0-020-000-00-00 | C187: LSAJ66026 | D187: RZ-568235 | E187: 1 | F187: A | G187: 4472598 | H187: issues | I187: Motoserra Moto Serra 6 Pol Portátil 2 Baterias Potente 1200w Mini Luatek Cor Preto | J187: MAGAZINE STORE21 | K187: CONSTRUCTION & INDUSTRY | L187: R$ 192.72 | M187: R$ 192.72 | N187: Ferramentas | O187: Ferramentas para Jardim | P187: 3P
A188: REZAGO | B188: RO-0-011-094-00-00 | C188: PNRM66799 | D188: RZ-568359 | E188: 1 | F188: A | G188: 4474446 | H188: it_support | I188: Placa Potência Lavadora Electrolux Lac13 A99035116 Original | J188: SEVERTECH REFRIGERAÇÃO | K188: HOME ELECTRONICS | L188: R$ 191.50 | M188: R$ 191.50 | N188: Eletrodomésticos | O188: Lavadores | P188: 3P
A189: REZAGO | B189: RO-0-020-000-00-00 | C189: JICD19561 | D189: RZ-568207 | E189: 2 | F189: A | G189: 4472596 | H189: issues | I189: Mafia Trilogy Eur - Ps4 Mídia Física lacrado | J189: VIDEOGSTORE | K189: TECHNOLOGY | L189: R$ 191.35 | M189: R$ 382.70 | N189: Games | O189: Video Games | P189: 3P
A190: REZAGO - RETURNS | B190: RO-0-020-000-00-03 | C190: DIIG03605 | D190: RZ-540899 | E190: 1 | F190: B | G190: 4460374 | H190: return | I190: Aiwa Aws-sp-01 Caixa De Som Speaker Bluetooth Cor Preto Aiwa | J190: Mercado Livre Eletronicos | K190: HOME ELECTRONICS | L190: R$ 189.00 | M190: R$ 189.00 | N190: Eletrônicos, Áudio e Vídeo | O190: Áudio | P190: 1P | Q190: =VLOOKUP(C190,'Página105'!A:D,4,0) -> 180.28 | R190: =Q190*E190 -> 180.28
A191: REZAGO | B191: RO-0-020-000-00-00 | C191: UNZO38291 | D191: RZ-568235 | E191: 1 | F191: A | G191: 4474440 | H191: it_support | I191: Chuteira Umbro Adamant Premier Campo | J191: LUKESPORTS | K191: FASHION | L191: R$ 187.81 | M191: R$ 187.81 | N191: Esportes e Fitness | O191: Futebol | P191: 3P
A192: REZAGO | B192: RO-0-011-094-00-00 | C192: TWTR13126 | D192: RZ-568357 | E192: 1 | F192: A | G192: 4474442 | H192: it_support | I192: Perfume O Boticário Des. Colônia Accordes Harmonia Feminino | J192: TRILHASMULTIMARCAS | K192: BEAUTY | L192: R$ 186.67 | M192: R$ 186.67 | N192: Beleza e Cuidado Pessoal | O192: Perfumes | P192: 3P
A193: REZAGO | B193: RO-0-006-077-00-00 | C193: BFCQ21677 | D193: RZ-540991 | E193: 1 | F193: A | G193: 4472600 | H193: issues | I193: Interruptor Zigbee Premium 4x2 1 Botão + 1 Cena Pérola | J193: QUEROAUTOMACAO | K193: CONSTRUCTION & INDUSTRY | L193: R$ 185.85 | M193: R$ 185.85 | N193: Construção | O193: Energia | P193: 3P
A194: REZAGO | B194: RO-0-011-094-00-00 | C194: WIMY44067 | D194: RZ-568433 | E194: 1 | F194: A | G194: 4474434 | H194: it_support | I194: Chuteira De Futebol De Campo Umbro Adamant Masterclass Club | J194: SLOTHSPORTING | K194: FASHION | L194: R$ 185.80 | M194: R$ 185.80 | N194: Esportes e Fitness | O194: Futebol | P194: 3P
A195: REZAGO | B195: RO-0-006-077-00-00 | C195: KHAA64540 | D195: RZ-540991 | E195: 1 | F195: A | G195: 4474440 | H195: it_support | I195: Sonoff 4 Canais Wifi Interruptor Inteligente App Android Ios - Automação Residencial Compatível Com Google Home / Alexa | J195: AUTOMAÇÃO BRASIL | K195: CONSTRUCTION & INDUSTRY | L195: R$ 183.89 | M195: R$ 183.89 | N195: Construção | O195: Energia | P195: 3P
A196: REZAGO | B196: RO-0-020-000-00-03 | C196: JQDF68751 | D196: RZ-540897 | E196: 1 | F196: A | G196: 4474446 | H196: it_support | I196: Jogo De Lençol Cama Ponto Palito Tecido 400 Fios Queen 4 Pçs | J196: RVIOTTOALMOFADAS | K196: FURNISHING & HOUSEWARE | L196: R$ 183.55 | M196: R$ 183.55 | N196: Casa, Móveis e Decoração | O196: Têxteis de Casa e Decoração | P196: 3P
A197: REZAGO | B197: RO-0-020-000-00-00 | C197: TCOV22367 | D197: RZ-568207 | E197: 1 | F197: A | G197: 4474444 | H197: it_support | I197: Par De Pivô Inferior De Suspensão Gm Omega / Suprema 93/98 | J197: WEBPECAS DISTRIBUIDORA | K197: VEHICLE PARTS & ACCESSORIES | L197: R$ 182.60 | M197: R$ 182.60 | N197: Acessórios para Veículos | O197: Peças de Carros e Caminhonetes | P197: 3P
A198: REZAGO | B198: RO-0-011-094-00-00 | C198: MJEZ83421 | D198: RZ-568359 | E198: 1 | F198: A | G198: 4474444 | H198: it_support | I198: Calça De Pesca Caça Vira Bermuda 8 Bolsos Com Proteção Uv50+ | J198: PESCA NATIVA-OFICIAL | K198: SPORTS | L198: R$ 182.31 | M198: R$ 182.31 | N198: Esportes e Fitness | O198: Camping, Caça e Pesca | P198: 3P
A199: REZAGO | B199: RO-0-011-094-00-00 | C199: VLFK52433 | D199: RZ-568357 | E199: 1 | F199: A | G199: 4474446 | H199: it_support | I199: Carplay E Android Auto Adaptador 5.0 Sem Fio Wireless | J199: GLOBALTECH_OFICIAL | K199: HOME ELECTRONICS | L199: R$ 182.09 | M199: R$ 182.09 | N199: Acessórios para Veículos | O199: Som Automotivo | P199: 3P
A200: REZAGO | B200: RO-0-011-094-00-00 | C200: XKYG48293 | D200: RZ-568357 | E200: 1 | F200: A | G200: 4474436 | H200: it_support | I200: Lâmina 7 Pino Nutri Ninja Auto Iq Ultra Extrator Nutrientes | J200: WEEMAGAZINE | K200: HOME ELECTRONICS | L200: R$ 181.74 | M200: R$ 181.74 | N200: Eletrodomésticos | O200: Pequenos Eletrodomésticos | P200: 3P
A201: REZAGO | B201: RO-0-011-094-00-00 | C201: RKQY71051 | D201: RZ-541109 | E201: 1 | F201: A | G201: 4472596 | H201: issues | I201: Boneco Action Figure Demon Slayer Sabito | J201: PLAYSTORE | K201: T & B | L201: R$ 180.89 | M201: R$ 180.89 | N201: Brinquedos e Hobbies | O201: Bonecos e Bonecas | P201: 3P
A202: REZAGO | B202: RO-0-011-094-00-00 | C202: JRPV76810 | D202: RZ-568359 | E202: 1 | F202: A | G202: 4474440 | H202: it_support | I202: Aspirador De Água E Pó Portátil Wap Gtw Compact 1400w | J202: 123 COMPROU | K202: HOME ELECTRONICS | L202: R$ 180.58 | M202: R$ 180.58 | N202: Eletrodomésticos | O202: Pequenos Eletrodomésticos | P202: 3P
A203: REZAGO | B203: RO-0-011-094-00-00 | C203: ZIWG34650 | D203: RZ-568357 | E203: 1 | F203: A | G203: 4474442 | H203: it_support | I203: Kit 2 Painéis E Capas Cilindros Festas Medidas Na Descrição | J203: WEAR SUBLIME | K203: T & B | L203: R$ 180.11 | M203: R$ 180.11 | N203: Festas e Lembrancinhas | O203: Decoração de Festa | P203: 3P
A204: REZAGO | B204: RO-0-011-094-00-00 | C204: QXII49670 | D204: RZ-541109 | E204: 1 | F204: A | G204: 4474446 | H204: it_support | I204: Luminária Emergência Bloco 2 Faróis 1200 Lúmens Taschibra Branco | J204: BANGUESCOM | K204: CONSTRUCTION & INDUSTRY | L204: R$ 179.56 | M204: R$ 179.56 | N204: Casa, Móveis e Decoração | O204: Iluminação Residencial | P204: 3P
... 3371 more rows

Sheet Página105
A1: inventory_id | B1: price_usd | C1: price_mxn | D1: unit_cost_lc | E1: unit_cost_usd
A2: ALWO26311 | B2: 20.41 | C2: 109.9 | D2: 82.44 | E2: 15.31
A3: ALWO26311 | B3: 20.41 | C3: 109.9 | D3: 82.44 | E3: 15.31
A4: UNZO17457 | B4: 25.24 | C4: 135.9 | D4: 120.74 | E4: 22.42
A5: LWZY44550 | B5: 17.66 | C5: 95.11 | D5: 96.31 | E5: 17.89
A6: PDOM62853 | B6: 19.76 | C6: 106.37 | D6: 88.38 | E6: 16.41
A7: PDOM62853 | B7: 19.76 | C7: 106.37 | D7: 88.38 | E7: 16.41
A8: SQMK30657 | B8: 92.68 | C8: 499 | D8: 367.96 | E8: 68.34
A9: SQMK30657 | B9: 92.68 | C9: 499 | D9: 367.96 | E9: 68.34
A10: QEIE65867 | B10: 83.56 | C10: 449.9 | D10: 295.34 | E10: 54.85
A11: HIAI44149 | B11: 3.71 | C11: 19.99 | D11: 13.53 | E11: 2.51
A12: ANCX09887 | B12: 13.35 | C12: 71.9 | D12: 42.56 | E12: 7.9
A13: ANCX09887 | B13: 13.35 | C13: 71.9 | D13: 42.56 | E13: 7.9
A14: OBEK87083 | B14: 44.53 | C14: 239.75 | D14: 153.6 | E14: 28.53
A15: OBEK87083 | B15: 44.53 | C15: 239.75 | D15: 153.6 | E15: 28.53
A16: IOIG57073 | B16: 44.32 | C16: 238.61 | D16: 147.22 | E16: 27.34
A17: BUOW60916 | B17: 8.37 | C17: 45.06 | D17: 27.28 | E17: 5.07
A18: PHJP60410 | B18: 6.26 | C18: 33.68 | D18: 25.93 | E18: 4.82
A19: PHJP60410 | B19: 6.26 | C19: 33.68 | D19: 25.93 | E19: 4.82
A20: GIVX31823 | B20: 23.43 | C20: 126.16 | D20: 142.51 | E20: 26.47
A21: TVZP76754 | B21: 40.84 | C21: 219.9 | D21: 221.22 | E21: 41.09
A22: TVZP76754 | B22: 40.84 | C22: 219.9 | D22: 221.22 | E22: 41.09
A23: CWPO04144 | B23: 41.64 | C23: 224.22 | D23: 108.01 | E23: 20.06
A24: ONDO97690 | B24: 11.14 | C24: 59.99 | D24: 31.66 | E24: 5.88
A25: MWIM40174 | B25: 111.25 | C25: 598.98 | D25: 392.84 | E25: 72.96
A26: NDJG79432 | B26: 92.14 | C26: 496.11 | D26: 290.52 | E26: 53.96
A27: EYBH15446 | B27: 22.96 | C27: 123.64 | D27: 104.34 | E27: 19.38
A28: JDBD96467 | B28: 44.57 | C28: 239.99 | D28: 115.62 | E28: 21.47
A29: CHKF80371 | B29: 34.12 | C29: 183.7 | D29: 203.78 | E29: 37.85
A30: WZMP51600 | B30: 51.14 | C30: 275.37 | D30: 154.05 | E30: 28.61
A31: FOOD27393 | B31: 73.11 | C31: 393.66 | D31: 263.43 | E31: 48.93
A32: NIMI74640 | B32: 6.43 | C32: 34.63 | D32: 32.59 | E32: 6.05
A33: MWIM40174 | B33: 111.25 | C33: 598.98 | D33: 392.84 | E33: 72.96
A34: RVWB17380 | B34: 778.33 | C34: 4190.78 | D34: 2676.23 | E34: 497.04
A35: NDJG79432 | B35: 92.84 | C35: 499.9 | D35: 290.52 | E35: 53.96
A36: JDBD96467 | B36: 44.57 | C36: 239.99 | D36: 115.62 | E36: 21.47
A37: PWFJ76016 | B37: 36.59 | C37: 197.01 | D37: 155.73 | E37: 28.92
A38: MWIM40174 | B38: 111.25 | C38: 598.98 | D38: 392.84 | E38: 72.96
A39: WFKJ93207 | B39: 520.4 | C39: 2802 | D39: 2098.16 | E39: 389.68
A40: NDJG79432 | B40: 92.84 | C40: 499.9 | D40: 290.52 | E40: 53.96
A41: GLVG03176 | B41: 24.52 | C41: 132 | D41: 109.1 | E41: 20.26
A42: AXUJ71371 | B42: 52.36 | C42: 281.91 | D42: 195.83 | E42: 36.37
A43: WZMP51600 | B43: 51.14 | C43: 275.37 | D43: 154.05 | E43: 28.61
A44: PWFJ76016 | B44: 36.59 | C44: 197.01 | D44: 155.73 | E44: 28.92
A45: MZKM25543 | B45: 65 | C45: 349.99 | D45: 133.54 | E45: 24.8
A46: DJAW44718 | B46: 17.99 | C46: 96.87 | D46: 108.39 | E46: 20.13
A47: IQFJ81218 | B47: 37.13 | C47: 199.9 | D47: 210.01 | E47: 39
A48: MWIM40174 | B48: 115.13 | C48: 619.9 | D48: 392.84 | E48: 72.96
A49: RVWB17380 | B49: 618.84 | C49: 3332 | D49: 2676.23 | E49: 497.04
A50: KVWJ14523 | B50: 74.29 | C50: 399.99 | D50: 115.97 | E50: 21.54
A51: IIOF26854 | B51: 24.14 | C51: 129.99 | D51: 86.62 | E51: 16.09
A52: WQRN84017 | B52: 26.74 | C52: 143.99 | D52: 146.55 | E52: 27.22
A53: WZMP71359 | B53: 2.6 | C53: 13.99 | D53: 10.97 | E53: 2.04
A54: MZKM25543 | B54: 71.27 | C54: 383.75 | D54: 133.54 | E54: 24.8
A55: ONDO97690 | B55: 11.14 | C55: 59.99 | D55: 31.66 | E55: 5.88
A56: FOOD27393 | B56: 85.15 | C56: 458.46 | D56: 263.43 | E56: 48.93
A57: YUJC32237 | B57: 20.43 | C57: 109.99 | D57: 91.64 | E57: 17.02
A58: FGYN83069 | B58: 26 | C58: 139.99 | D58: 82.18 | E58: 15.26
A59: LDMM07891 | B59: 176.25 | C59: 949 | D59: 676.71 | E59: 125.68
A60: LDMM07891 | B60: 159.85 | C60: 860.69 | D60: 676.71 | E60: 125.68
A61: MZKM25543 | B61: 65 | C61: 349.99 | D61: 133.54 | E61: 24.8
A62: ZAYT91570 | B62: 2.95 | C62: 15.9 | D62: 17.15 | E62: 3.19
A63: KKGJ44756 | B63: 23.43 | C63: 126.16 | D63: 147.09 | E63: 27.32
A64: AHUM28811 | B64: 157.9 | C64: 850.18 | D64: 629.92 | E64: 116.99
A65: RTIZ85806 | B65: 744.75 | C65: 4009.97 | D65: 2795.65 | E65: 519.22
A66: GBSC18929 | B66: 37.52 | C66: 202.02 | D66: 147.18 | E66: 27.34
A67: VUDY86070 | B67: 10.01 | C67: 53.9 | D67: 36.91 | E67: 6.86
A68: WZMP71359 | B68: 2.6 | C68: 13.99 | D68: 10.97 | E68: 2.04
A69: GTXC66591 | B69: 25.26 | C69: 136 | D69: 39.11 | E69: 7.26
A70: CHKF80371 | B70: 34.12 | C70: 183.7 | D70: 203.78 | E70: 37.85
A71: OLGX47493 | B71: 14.71 | C71: 79.18 | D71: 95.1 | E71: 17.66
A72: VHLM65769 | B72: 34.17 | C72: 184 | D72: 51.44 | E72: 9.55
A73: RTIZ85806 | B73: 654.92 | C73: 3526.3 | D73: 2795.65 | E73: 519.22
A74: DIIG03605 | B74: 35.1 | C74: 189 | D74: 180.28 | E74: 33.48
A75: DJAW44718 | B75: 17.99 | C75: 96.87 | D75: 108.39 | E75: 20.13
A76: FOOD27393 | B76: 73.11 | C76: 393.66 | D76: 263.43 | E76: 48.93
A77: ORRJ50670 | B77: 31.74 | C77: 170.91 | D77: 107.71 | E77: 20
A78: WFKJ93207 | B78: 520.4 | C78: 2802 | D78: 2098.16 | E78: 389.68
A79: GBSC18929 | B79: 37.52 | C79: 202.02 | D79: 147.18 | E79: 27.34
A80: CWPO04144 | B80: 30.86 | C80: 166.15 | D80: 108.01 | E80: 20.06
A81: PWFJ76016 | B81: 44.57 | C81: 239.99 | D81: 155.73 | E81: 28.92
A82: RWWO97559 | B82: 11.87 | C82: 63.9 | D82: 40.96 | E82: 7.61
A83: QEBM82018 | B83: 13.8 | C83: 74.3 | D83: 64.9 | E83: 12.05
A84: EBZE73548 | B84: 1.49 | C84: 8 | D84: 5.12 | E84: 0.95
A85: RTIZ85806 | B85: 779.86 | C85: 4199 | D85: 2795.65 | E85: 519.22
A86: AXUJ71371 | B86: 52.36 | C86: 281.91 | D86: 195.83 | E86: 36.37
A87: AXUJ71371 | B87: 52.36 | C87: 281.91 | D87: 195.83 | E87: 36.37
A88: HTZZ32421 | B88: 53.86 | C88: 290 | D88: 252.07 | E88: 46.82
A89: CWPO04144 | B89: 41.64 | C89: 224.22 | D89: 108.01 | E89: 20.06
A90: WZMP51600 | B90: 51.14 | C90: 275.37 | D90: 154.05 | E90: 28.61
A91: IIOF26854 | B91: 23.89 | C91: 128.64 | D91: 86.62 | E91: 16.09
A92: FOOD27393 | B92: 85.15 | C92: 458.46 | D92: 263.43 | E92: 48.93
A93: AXUJ71371 | B93: 49.72 | C93: 267.72 | D93: 195.83 | E93: 36.37
A94: DIIG03605 | B94: 35.1 | C94: 189 | D94: 180.28 | E94: 33.48
A95: WSKH34697 | B95: 210.05 | C95: 1130.96 | D95: 588.97 | E95: 109.39
A96: FOOD27393 | B96: 85.15 | C96: 458.46 | D96: 263.43 | E96: 48.93
A97: EBZE73548 | B97: 1.49 | C97: 8 | D97: 5.12 | E97: 0.95
A98: WZMP71359 | B98: 4.27 | C98: 22.99 | D98: 10.97 | E98: 2.04
A99: IIOF26854 | B99: 23.89 | C99: 128.64 | D99: 86.62 | E99: 16.09
A100: IQFJ81218 | B100: 37.13 | C100: 199.9 | D100: 210.01 | E100: 39
A101: GBSC18929 | B101: 35.27 | C101: 189.9 | D101: 147.18 | E101: 27.34
A102: EYBH15446 | B102: 22.29 | C102: 119.99 | D102: 104.34 | E102: 19.38
A103: OXYN22834 | B103: 7.86 | C103: 42.3 | D103: 31.65 | E103: 5.88
A104: JHXN23584 | B104: 1355.61 | C104: 7299 | D104: 3781.97 | E104: 702.41
A105: HTZZ32421 | B105: 32.8 | C105: 176.61 | D105: 252.07 | E105: 46.82
A106: AXUJ71371 | B106: 53.15 | C106: 286.17 | D106: 195.83 | E106: 36.37
A107: QEBM82018 | B107: 13.8 | C107: 74.3 | D107: 64.9 | E107: 12.05
A108: ABRN49367 | B108: 26.24 | C108: 141.28 | D108: 70.27 | E108: 13.05
A109: WQRN84017 | B109: 26.74 | C109: 143.99 | D109: 146.55 | E109: 27.22
A110: KVWJ14523 | B110: 74.29 | C110: 399.99 | D110: 115.97 | E110: 21.54
A111: WSKH34697 | B111: 204.11 | C111: 1099 | D111: 588.97 | E111: 109.39
A112: MWIM40174 | B112: 102.89 | C112: 554 | D112: 392.84 | E112: 72.96
A113: GLVG03176 | B113: 24.52 | C113: 132 | D113: 109.1 | E113: 20.26
A114: NDJG79432 | B114: 92.14 | C114: 496.11 | D114: 290.52 | E114: 53.96
A115: CHKF80371 | B115: 34.12 | C115: 183.7 | D115: 203.78 | E115: 37.85
A116: CYHC40556 | B116: 23.43 | C116: 126.16 | D116: 147.09 | E116: 27.32
A117: FRTO44870 | B117: 14.3 | C117: 76.99 | D117: 46.38 | E117: 8.61
A118: WQRN84017 | B118: 26.74 | C118: 143.99 | D118: 146.55 | E118: 27.22
A119: JHXN23584 | B119: 1031.6 | C119: 5554.44 | D119: 3781.97 | E119: 702.41
A120: IQFJ81218 | B120: 37.13 | C120: 199.9 | D120: 210.01 | E120: 39
A121: HTZZ32421 | B121: 32.8 | C121: 176.61 | D121: 252.07 | E121: 46.82
A122: GBSC18929 | B122: 37.52 | C122: 202.02 | D122: 147.18 | E122: 27.34
A123: BFGI88365 | B123: 2.95 | C123: 15.9 | D123: 16.62 | E123: 3.09
A124: USXH09943 | B124: 15.66 | C124: 84.33 | D124: 87.16 | E124: 16.19
A125: PJZI53660 | B125: 20.24 | C125: 108.99 | D125: 93.93 | E125: 17.45
A126: JDOJ65833 | B126: 38.82 | C126: 209 | D126: 140.65 | E126: 26.12
A127: DODL22187 | B127: 20.05 | C127: 107.98 | D127: 107.19 | E127: 19.91
A128: KADP91734 | B128: 16.87 | C128: 90.81 | D128: 76.77 | E128: 14.26
A129: JDOJ65833 | B129: 42.97 | C129: 231.35 | D129: 140.65 | E129: 26.12
A130: DODL22187 | B130: 21.03 | C130: 113.24 | D130: 107.19 | E130: 19.91
A131: KVMA07219 | B131: 14.11 | C131: 75.99 | D131: 65.79 | E131: 12.22
A132: KADP91734 | B132: 22.7 | C132: 122.22 | D132: 76.77 | E132: 14.26
A133: DODL22187 | B133: 20.05 | C133: 107.98 | D133: 107.19 | E133: 19.91
A134: BBCP09785 | B134: 33.75 | C134: 181.72 | D134: 168.43 | E134: 31.28
A135: KHBC38262 | B135: 17.63 | C135: 94.9 | D135: 86.74 | E135: 16.11
A136: EWCZ52792 | B136: 12.15 | C136: 65.44 | D136: 47.77 | E136: 8.87
A137: NNTQ21864 | B137: 16.7 | C137: 89.9 | D137: 57.36 | E137: 10.65
A138: TOBK35107 | B138: 25.98 | C138: 139.9 | D138: 78.65 | E138: 14.61
A139: EWCZ52792 | B139: 11.05 | C139: 59.5 | D139: 47.77 | E139: 8.87
A140: KADP91734 | B140: 22.7 | C140: 122.22 | D140: 76.77 | E140: 14.26
A141: STLG20697 | B141: 17.02 | C141: 91.66 | D141: 80.66 | E141: 14.98
A142: XJSG11441 | B142: 9.78 | C142: 52.68 | D142: 47.41 | E142: 8.81
A143: KVMA07219 | B143: 21.91 | C143: 117.99 | D143: 65.79 | E143: 12.22
A144: DVKL14133 | B144: 4.18 | C144: 22.52 | D144: 14.63 | E144: 2.72
A145: VGPR03857 | B145: 1.72 | C145: 9.24 | D145: 11.01 | E145: 2.04
A146: DEKA06848 | B146: 13.37 | C146: 71.97 | D146: 61.2 | E146: 11.37
A147: DEKA06848 | B147: 13.37 | C147: 71.97 | D147: 61.2 | E147: 11.37
A148: NNTQ21864 | B148: 14.19 | C148: 76.43 | D148: 57.36 | E148: 10.65
A149: KVMA07219 | B149: 16.04 | C149: 86.34 | D149: 65.79 | E149: 12.22
A150: ROPP72144 | B150: 10.6 | C150: 57.09 | D150: 62.85 | E150: 11.67
A151: TOBK35107 | B151: 25.98 | C151: 139.9 | D151: 78.65 | E151: 14.61
A152: TJJX65299 | B152: 1.49 | C152: 8 | D152: 2.86 | E152: 0.53
A153: DVKL14133 | B153: 3.2 | C153: 17.24 | D153: 14.63 | E153: 2.72
A154: IDIL23804 | B154: 35.29 | C154: 189.99 | D154: 143.18 | E154: 26.59
A155: XNOG10982 | B155: 9.27 | C155: 49.9 | D155: 13.05 | E155: 2.42
A156: VGPR22754 | B156: 18.55 | C156: 99.9 | D156: 54.9 | E156: 10.2
A157: KHBC38262 | B157: 12.23 | C157: 65.84 | D157: 86.74 | E157: 16.11
A158: KVMA07219 | B158: 14.11 | C158: 75.99 | D158: 65.79 | E158: 12.22
A159: JDOJ65833 | B159: 40.02 | C159: 215.48 | D159: 140.65 | E159: 26.12
A160: KADP91734 | B160: 22.7 | C160: 122.22 | D160: 76.77 | E160: 14.26
A161: BBCP09785 | B161: 33.75 | C161: 181.72 | D161: 168.43 | E161: 31.28
A162: STLG20697 | B162: 17.02 | C162: 91.66 | D162: 80.66 | E162: 14.98
A163: BBCP09785 | B163: 46.4 | C163: 249.84 | D163: 168.43 | E163: 31.28
A164: XJSG11441 | B164: 7.41 | C164: 39.9 | D164: 47.41 | E164: 8.81
A165: IDIL23804 | B165: 35.29 | C165: 189.99 | D165: 143.18 | E165: 26.59
A166: VGPR03857 | B166: 1.72 | C166: 9.24 | D166: 11.01 | E166: 2.04
A167: KADP91734 | B167: 22.7 | C167: 122.22 | D167: 76.77 | E167: 14.26
A168: DVKL14133 | B168: 3.2 | C168: 17.24 | D168: 14.63 | E168: 2.72
A169: KADP91734 | B169: 16.87 | C169: 90.81 | D169: 76.77 | E169: 14.26
A170: VGPR22754 | B170: 18.55 | C170: 99.9 | D170: 54.9 | E170: 10.2
A171: JDOJ65833 | B171: 33.05 | C171: 177.96 | D171: 140.65 | E171: 26.12
A172: JDOJ65833 | B172: 38.82 | C172: 209 | D172: 140.65 | E172: 26.12
A173: DODL22187 | B173: 20.05 | C173: 107.98 | D173: 107.19 | E173: 19.91
A174: TJJX65299 | B174: 1.49 | C174: 8 | D174: 2.86 | E174: 0.53

Sheet Resumo
A1: ='3P1P'!D2 -> Lote 1022 - (Novembro'25) - Cajamar SP02 - 1P / 3P
A2: QUANTIDADE | B2: ='3P1P'!E6 -> 4,800
A3: VALOR REF. | B3: ='3P1P'!M6 -> 289,821.11
A4: OFERTA

Sheet Complemento
A1: Segue abaixo cronograma do processo: | B1: Data e Endereço | C1: Horário
A3: 1. Envio do contrato de compra e venda para análise e assinatura | B3: Em até 1 dia após o fechamento
A4: 2. Transferência do valor do pagamento pelo provedor | B4: Em até 1 dia após o fechamento
A5: 3. Solicitar ao Fiscal a emissão da nota de lançamento do lote | B5: Em até 1 dia após o fechamento
A6: 4. Separação física (feito);
A7: 4. Recolha de lotes pelo provedor. | B7: Em até 5 dias após o fechamento do lote | C7: Das 06:00 ás 11:00
A8: 5. Carro
A9: 6. Reforço que é expressamente proibido pelo Meli o carregamento em caminhões Sider e caminhões com plataforma. | B9: 1 Toco
A10: 7. Provedor que estiver com alguma pendência junto ao Meli, as ofertas serão desconsideradas até sua regularização.
A11: Local de carregamento: | B11: Av. Antônio João Abdalla, nº 3333, Parte A, Loteamento Sítio dos Pães, Parte 1, Bairro Empresarial Colina, Cajamar - SP, CEP 07750-020.
A14: 2.7. A COMPRADORA declara e concorda que poderá haver diferença, tanto para mais como menos, da quantidade/classificação dos produtos contidos em referido lote, não podendo essa diferença ultrapassar o limite de 5% (cinco por cento).
A15: 2.7.1. Caso seja constatada a diferença, inferior ou superior a 5% (cinco por cento), a COMPRADORA deverá informar a VENDEDORA sobre a divergência em até 72 (setenta e duas) horas, do pagamento e recebimento do lote dos Produtos.
A16: 5.1. Sem prejuízo dos demais direitos ou recursos cabíveis, o não cumprimento de quaisquer das cláusulas e condições previstas no presente Contrato acarretará à COMPRADORA o pagamento de multa correspondente a 10% (dez por cento) do valor do Preço.
A18: Caso o envio da comunicação não seja feito no prazo, a divergência será considerada aceita pela COMPRADORA.
